Cogmind - Beta 17 @@@ ROGUE MODE // 2026.07.27 @ 23:36:42 Player: Petvaria Result: Establishing 0b11! Performance ------------- Evolutions (9) 4500 Regions Visited (32) 6400 Robots Destroyed (636) 3180 Value Destroyed (37232) 37232 Prototype IDs (398) 7960 Alien Tech Used (15) 3000 Bonus (89798) 89798 TOTAL SCORE: 152070 Bonus ------- Triggered High Security 1000 High Alert Combat Kills 11646 Follower Combat Kills 2501 Prayed to X0-1V1 5000 Major X0-1V1 Interference 14450 Installed LC Capacitor 1000 Entered Garrisons 1400 Used RIF Installer 3500 Aligned with FarCom 300 Met Data Miner 300 Used Data Conduit 3000 Found Hidden Lab 3000 Decrypted A0 Command 3000 Scanned by Researcher 500 Pursued by Intercept 1500 Recovered Sigix Corpse 2000 Destroyed MAIN.C Guards 500 Destroyed MAIN.C Shell 5000 Destroyed MAIN.C 10000 Met Architect 300 Destroyed A6 400 Destroyed A4 700 Destroyed A3 800 Destroyed A2 1000 Destroyed Architect 15000 Win 3000 Friendly Fire -999 Cogmind --------- Core Integrity 1178/1550 Matter 339/800 Energy 1395/4200 System Corruption 0% Temperature Cool (14) Movement Treading (160) Location 0b11 Command Parts ------- > --- POWER (4) -------- Improved Quantum Reactor Singularity Reactor (fused) > --- PROPULSION (7) --- Enhanced Armored Medium Treads Centrium Heavy Treads High-density Centrium Heavy Treads High-density Centrium Heavy Treads > --- UTILITY (11) ----- Experimental Coolant Injector Huge Storage Unit Superbattery (fused) Experimental Core Analyzer Precision Energy Filter Experimental Weapon Cycler Experimental Phase Shifter Graphene Brace (fused) Experimental EM Shield Advanced Remote Force Field Experimental System Purifier > --- WEAPON (4) ------- Modified Sigix Sheargun Modified Sigix Sheargun Sigix Broadsword > --- INVENTORY (29) --- Improved Quantum Reactor Vortex Chain Reactor Advanced Heavy Treads Experimental Biometal Heavy Treads Experimental Cooling System Experimental Core Analyzer Quantum Capacitor Experimental Cloaking Device Experimental Weapon Shielding Experimental Focal Shield Thermal Barrier Enhanced Gamma Rifle Gatling Beam Potential Cannon L-Cannon (5) A3's Sniper Rifle Gamma Bomb Array Guided Remote Datajack Sigix Corpse Peak State ------------ > --- POWER ------------ Improved Quantum Reactor Singularity Reactor > --- PROPULSION ------- Enhanced Armored Medium Treads Centrium Heavy Treads High-density Centrium Heavy Treads High-density Centrium Heavy Treads > --- UTILITY ---------- Experimental Coolant Injector Huge Storage Unit Superbattery Experimental Core Analyzer Experimental Weapon Cycler Experimental Phase Shifter Graphene Brace Experimental EM Shield Advanced Remote Force Field Experimental System Purifier X0-1V1's Piety Tracker > --- WEAPON ----------- Modified Sigix Sheargun Modified Sigix Sheargun Sigix Broadsword > --- INVENTORY -------- Improved Quantum Reactor Vortex Chain Reactor Advanced Heavy Treads Experimental Biometal Heavy Treads Experimental Cooling System Experimental Core Analyzer Precision Energy Filter Quantum Capacitor Experimental Cloaking Device Experimental Weapon Shielding Experimental Focal Shield Thermal Barrier Enhanced Gamma Rifle Gatling Beam Potential Cannon L-Cannon A3's Sniper Rifle Gamma Bomb Array Guided Remote Datajack Sigix Corpse [Rating: 282] Favorites ----------- Power Improved Quantum Reactor Engine Improved Deuterium Engine Power Core Micro Nuclear Core Reactor Improved Quantum Reactor Propulsion Light Treads Treads Light Treads Leg Carbon-fiber Leg Wheel Armored Huge Wheel Utility Huge Storage Unit Device Advanced Cooling System Storage Huge Storage Unit Processor Experimental Core Analyzer Hackware Relay Coupler [NC] Protection Heavy Regenerative Plating Artifact LC Capacitor Weapon Enhanced Nova Cannon Energy Gun Enhanced Quantum Rifle Energy Cannon Enhanced Nova Cannon Ballistic Gun Light Assault Rifle Ballistic Cannon Hypervelocity Gauss Cannon Launcher Advanced EMP Blaster Special Weapon Guided Remote Datajack Impact Weapon Makeshift Hammer Slashing Weapon Sigix Broadsword Build | -11 -10 -10 -10 -9 -8 -8 -8 -8 -7 -7 -7 -7 -6 -6 -6 -6 -6 -5 -5 -4 -4 -4 -4 -3 -3 -3 -2 -2 -2 -1 -1 -1 ------- Run | Yrd Mat Min Exi Min Mat Gar Mat Gar Fac Low Low Dat Pro Fac Gar Fac Gar Fac Gar Fac Gar Fac Gar Res Arm Lab Res Qua Sec Acc Com Ac0 Slots Evolved 18 | . . . . . 4 . . . 2 . . . . 2 . . . 2 . 2 . . . 2 . . 2 . . 2 . . Power 2 | . . . . . . . . . . . . . . . . . . . . . . . . 1 . . . . . 1 . . Propulsion 3 | . . . . . 1 . . . 1 . . . . . . . . 1 . . . . . . . . . . . . . . Utility 10 | . . . . . 1 . . . 1 . . . . 2 . . . . . 2 . . . 1 . . 2 . . 1 . . Weapon 3 | . . . . . 2 . . . . . . . . . . . . 1 . . . . . . . . . . . . . . Parts Attached 331 | 7 7 2 . 8 26 15 2 23 14 4 11 1 5 . 21 2 11 9 4 4 21 2 4 8 11 7 6 8 21 8 22 37 Power 48 | 1 . 1 . 2 1 6 . 4 1 . 1 . . . 5 . 1 . 1 . 3 . . 1 4 1 . 1 5 4 3 2 Engine 18 | 1 . 1 . 2 1 3 . 3 1 . 1 . . . 3 . 1 . 1 . . . . . . . . . . . . . Core 4 | . . . . . . 3 . 1 . . . . . . . . . . . . . . . . . . . . . . . . Reactor 26 | . . . . . . . . . . . . . . . 2 . . . . . 3 . . 1 4 1 . 1 5 4 3 2 Propulsion 68 | 2 1 1 . 2 7 3 . 7 3 1 1 . . . 10 . 3 1 . . 8 . . . 1 1 3 . 3 1 5 4 Treads 64 | 2 1 1 . 2 7 3 . 7 3 1 1 . . . 6 . 3 1 . . 8 . . . 1 1 3 . 3 1 5 4 Leg 3 | . . . . . . . . . . . . . . . 3 . . . . . . . . . . . . . . . . . Wheel 1 | . . . . . . . . . . . . . . . 1 . . . . . . . . . . . . . . . . . Hover . | . . . . . . . . . . . . . . . . . . . . . . . . . . . . . . . . . Flight . | . . . . . . . . . . . . . . . . . . . . . . . . . . . . . . . . . Utility 121 | 2 3 . . 1 10 3 1 4 4 3 5 . 3 . 4 1 3 4 2 4 7 1 3 5 3 3 2 3 5 2 9 21 Device 81 | 1 1 . . . 6 2 1 4 1 3 3 . 2 . 3 1 1 3 2 2 6 . 2 2 2 1 2 2 5 1 6 16 Storage 7 | 1 2 . . . 2 . . . . . . . . . . . . . . . . 1 . . . . . . . . 1 . Processor 6 | . . . . . . . . . 2 . . . . . . . . . . . . . . . 1 . . . . . 2 1 Hackware 11 | . . . . . 1 . . . . . 1 . . . . . . . . 2 1 . . 3 . . . 1 . . . 2 Protection 15 | . . . . 1 1 1 . . 1 . 1 . 1 . 1 . 2 1 . . . . 1 . . 1 . . . 1 . 2 Artifact 1 | . . . . . . . . . . . . . . . . . . . . . . . . . . 1 . . . . . . Weapon 94 | 2 3 . . 3 8 3 1 8 6 . 4 1 2 . 2 1 4 4 1 . 3 1 1 2 3 2 1 4 8 1 5 10 Energy Gun 23 | . . . . 1 3 1 . 2 2 . . . . . 1 . 2 1 . . . . 1 . 1 1 . . 2 . . 5 Energy Cannon 18 | . . . . . 1 . 1 . . . . . 2 . . 1 . 2 . . 2 . . . 1 . 1 2 2 1 2 . Ballistic Gun 26 | 2 2 . . . 1 2 . 6 2 . 1 . . . 1 . . . . . 1 . . 1 . . . 1 3 . 2 1 Ballistic Cannon 5 | . . . . . . . . . . . . . . . . . 2 1 . . . . . . . . . . . . . 2 Launcher 13 | . 1 . . 1 3 . . . 2 . 2 . . . . . . . 1 . . 1 . . 1 . . . 1 . . . Special Weapon 5 | . . . . . . . . . . . 1 . . . . . . . . . . . . 1 . 1 . . . . 1 1 Impact Weapon 2 | . . . . 1 . . . . . . . . . . . . . . . . . . . . . . . 1 . . . . Slashing Weapon 2 | . . . . . . . . . . . . 1 . . . . . . . . . . . . . . . . . . . 1 Piercing Weapon . | . . . . . . . . . . . . . . . . . . . . . . . . . . . . . . . . . Special Melee Weapon . | . . . . . . . . . . . . . . . . . . . . . . . . . . . . . . . . . Unidentified Prototypes 36 | . 1 . . . 2 . . . 2 . . . . . . . . 2 . . . . . 1 . 7 . 3 6 2 1 9 Corrupted Parts 8 | . . . . . . . . . . . . . . . 2 . . . . . 3 . . . . . . . 2 . 1 . System Corruption 61 | . . . . . . . . . . . . . . . 20 . . . . . 18 . . . . . . . 19 . 4 . Parts Lost 68 | . 1 . . 5 1 8 3 5 . . 5 . . . 14 1 5 2 . . . . 1 . 2 . . . 7 1 . 7 Power 13 | . . . . 2 . 3 . 2 . . 1 . . . 2 . . 1 . . . . . . . . . . 1 . . 1 Propulsion 18 | . 1 . . 1 . 3 1 1 . . 1 . . . 7 . 1 1 . . . . . . . . . . 1 . . . Utility 24 | . . . . 2 . . 1 2 . . 3 . . . 3 . 1 . . . . . 1 . 2 . . . 3 1 . 5 Weapon 13 | . . . . . 1 2 1 . . . . . . . 2 1 3 . . . . . . . . . . . 2 . . 1 Highest Loss Streak 13 | . 1 . . 3 1 3 3 2 . . 4 . . . 13 1 3 2 . . . . 1 . 2 . . . 2 1 . 2 To Critical Strikes 2 | . . . . . . 1 . . . . . . . . . . . . . . . . . . . . . . 1 . . . Average Backups 22 | 3 10 13 13 14 17 23 24 24 24 24 24 25 25 24 25 26 25 24 24 23 24 23 22 23 24 24 24 24 22 18 22 21 Power 1 | . 1 . . . 1 . 1 1 1 1 . . 1 1 . 1 1 1 1 1 1 1 1 . 1 1 1 . 2 2 1 1 Propulsion 2 | 1 3 3 3 2 3 2 3 3 2 3 2 3 3 3 1 1 1 . . . 1 2 2 2 2 1 1 1 1 1 2 2 Utility 10 | . 2 4 3 3 4 8 7 8 9 10 9 11 12 11 13 14 13 14 16 14 14 12 11 12 11 11 10 10 8 7 10 9 Weapon 7 | . 3 5 6 7 8 10 10 10 10 9 10 9 8 8 8 9 8 5 5 5 5 6 6 7 7 7 8 8 6 5 5 6 Tool/Special . | . . . . . . . . . . . . . . . . . . . . . . . . . . . . . . . . . Unused Backups 102 | . 6 1 2 . 4 3 . 2 5 . 1 3 1 . 2 1 4 4 2 2 6 . . 1 3 2 . 3 3 . 18 23 Power 12 | . 1 . . . . 1 . . . . . . . . . . . 1 . . 1 . . . 2 . . . 1 . 3 2 Propulsion 25 | . 5 . 1 . 1 . . 1 2 . . . . . 1 . 1 . . . 1 . . . . . . . . . 7 5 Utility 37 | . . . 1 . 2 1 . 1 . . 1 1 1 . . 1 1 1 2 2 4 . . . . 2 . . 2 . 7 7 Weapon 24 | . . 1 . . 1 1 . . 3 . . 2 . . 1 . 2 2 . . . . . . 1 . . 1 . . 1 8 Tool/Special 4 | . . . . . . . . . . . . . . . . . . . . . . . . 1 . . . 2 . . . 1 Average Slot Usage (%) 85 | . 99 99 100 92 96 99 100 98 99 100 98 100 100 99 89 85 85 87 84 88 86 78 76 78 81 79 76 76 79 79 77 67 Engine 5 | . 13 20 24 27 16 11 9 7 5 7 14 15 15 13 8 . 2 4 2 5 1 . . . . . . . . . . . Core 1 | . . . . . . 6 9 9 8 7 . . . . . . . . . . . . . . . . . . . . . . Reactor 6 | . . . . . . . . . . . . . . . 3 13 10 5 5 5 8 10 10 11 14 13 12 9 10 14 13 6 Treads 20 | . 27 17 24 28 24 26 27 27 29 30 29 30 30 26 19 25 26 28 29 26 23 15 15 14 14 13 13 16 13 11 10 11 Device 17 | . 13 11 12 6 14 17 11 16 14 15 14 10 19 19 16 13 13 11 11 19 20 21 20 15 16 20 15 14 23 25 22 24 Storage 7 | . 13 11 12 14 8 8 9 9 7 7 7 7 7 6 6 6 6 5 5 5 5 5 5 4 4 4 4 4 6 7 7 7 Processor 1 | . . . . . . . . . . . . . . . . . . . . . . . . . 1 4 4 4 3 3 3 5 Protection 3 | . . . . 1 1 . 6 1 6 7 . 7 2 6 5 6 6 5 5 5 5 5 5 4 2 . 4 4 3 2 3 . Energy Gun 3 | . . . . 5 10 12 14 5 4 1 . . . . 5 1 7 1 . . . . 4 4 4 3 4 3 5 . . . Energy Cannon 4 | . . . . . . . 3 3 . . . . 1 . . 4 . 11 11 9 10 14 9 8 8 8 7 7 6 10 10 3 Ballistic Gun 7 | . 28 38 25 . 16 10 9 16 7 21 22 11 . . 7 12 3 . . . 2 1 4 3 4 3 4 4 2 . 1 . Launcher 1 | . . . . . . . . . 10 . . 10 22 26 7 . . . 1 . . . . . . . . . . . . . Peak Build Rating 282 | 7 22 23 25 26 50 46 41 46 58 51 66 56 61 61 77 77 82 94 98 116 155 157 161 176 182 207 225 235 239 232 256 282 Average Rating 133 | 4 12 22 23 18 38 38 33 40 51 50 55 54 57 60 67 76 76 88 93 111 120 155 154 169 178 183 221 224 212 230 243 260 On Entrance 98 | . 7 22 23 23 14 49 41 31 46 50 51 52 55 54 61 75 77 74 92 96 107 155 155 161 175 180 207 221 223 188 223 255 Avg Prop Armor Cover (%) 6 | . . . . . . . . . . . . . . . 6 . . . . . . . . . . . . . . . . . Naked Turns . | . . . . . . . . . . . . . . . . . . . . . . . . . . . . . . . . . Heaviest Build 270 | 13 31 36 35 36 110 110 109 111 125 125 134 140 140 135 154 160 160 175 180 185 208 208 203 216 210 212 215 216 239 257 270 244 Greatest Support 295 | 40 40 40 40 40 60 60 60 60 80 80 80 80 80 80 140 140 140 150 160 160 230 230 230 230 230 230 258 228 228 215 250 295 Greatest Overweight (x) 41 | . . 1 . . 1 1 1 1 1 1 1 1 1 1 41 1 1 1 1 1 1 . 1 . . . . . 1 1 1 1 Average Overweight (x) . | . . . . . . 1 1 1 1 1 1 1 1 1 1 1 1 . . 1 . . . . . . . . . 1 . . Largest Inventory Capacity 29 | 8 15 15 15 17 27 27 27 27 27 27 27 27 27 27 27 27 27 27 27 27 27 27 27 27 27 27 27 27 29 29 29 29 Average Capacity 26 | 7 11 15 15 15 20 27 27 27 27 27 27 27 27 27 27 27 27 27 27 27 27 27 27 27 27 27 27 27 27 29 29 29 Most Carried 29 | 7 13 15 15 17 27 27 27 27 27 27 27 27 27 26 27 27 27 27 27 27 27 27 27 27 27 27 27 27 29 28 29 29 Average Carried 25 | 3 10 14 14 15 18 25 26 26 26 26 26 26 26 25 25 26 26 26 26 25 26 27 26 26 26 26 26 26 27 24 28 28 Final Capacity 29 | 8 15 15 15 17 27 27 27 27 27 27 27 27 27 27 27 27 27 27 27 27 27 27 27 27 27 27 27 27 29 29 29 29 Final Carried 29 | 6 13 15 15 17 27 27 26 27 27 27 26 27 27 25 27 26 27 26 27 27 27 27 27 27 27 27 27 26 29 26 29 27 Class Distribution -------------------- 16% | Scavenger-Skirmisher 15% | Scavenger-Bomber 10% | Generator-Mutant 10% | Generator-Tank 9% | Hauler-Bomber 8% | Scavenger-Tank 6% | Generator-Bomber 5% | Bothacker-Bomber 3% | Scavenger-Mutant 3% | Mutant Dominant Class ---------------- Mutant | -10/Materials Gunner | -10/Mines Gunner | -10/Exiles Scavenger-Mutant | -9/Mines Scavenger-Skirmisher | -8/Materials Scavenger-Skirmisher | -8/Garrison Scavenger-Skirmisher | -8/Materials Scavenger-Skirmisher | -8/Garrison Scavenger-Tank | -7/Factory Scavenger-Tank | -7/Lower Caves Scavenger-Skirmisher | -7/Lower Caves Hauler-Tank | -7/Data Miner Hauler-Skirmisher | -6/Proximity Caves Scavenger-Tank | -6/Factory Scavenger-Bomber | -6/Garrison Bothacker-Bomber | -6/Factory Bothacker-Bomber | -6/Garrison Bothacker-Bomber | -5/Factory Scavenger-Bomber | -5/Garrison Scavenger-Bomber | -4/Factory Scavenger-Bomber | -4/Garrison Hauler-Bomber | -4/Factory Hauler-Bomber | -4/Garrison Hauler-Bomber | -3/Research Hauler-Bomber | -3/Armory Hauler-Bomber | -3/Lab Hauler-Bomber | -2/Research Scavenger-Bomber | -2/Quarantine Scavenger-Bomber | -2/Section 7 Generator-Bomber | -1/Access Generator-Tank | -1/Command Generator-Mutant | -1/Access_0 Resources | -11 -10 -10 -10 -9 -8 -8 -8 -8 -7 -7 -7 -7 -6 -6 -6 -6 -6 -5 -5 -4 -4 -4 -4 -3 -3 -3 -2 -2 -2 -1 -1 -1 ----------- Run | Yrd Mat Min Exi Min Mat Gar Mat Gar Fac Low Low Dat Pro Fac Gar Fac Gar Fac Gar Fac Gar Fac Gar Res Arm Lab Res Qua Sec Acc Com Ac0 Matter Collected 18223 | 260 321 248 . 468 921 658 176 532 651 421 859 95 513 . 1365 299 950 267 800 509 904 242 763 689 350 82 754 615 1367 103 1022 1019 Remotely . | . . . . . . . . . . . . . . . . . . . . . . . . . . . . . . . . . Salvage Created 32677 | 26 473 277 . 377 1691 688 868 896 1244 445 731 451 715 . 2289 415 1402 616 724 575 1098 610 1361 1660 1052 82 631 923 6971 530 766 2090 Parts 1253 | 3 30 10 . 8 75 62 23 54 31 23 31 13 19 . 76 20 48 28 25 26 39 25 61 69 54 7 21 18 242 14 23 75 Haulers Intercepted 13 | . 2 . . . 4 . 2 . 1 . . . . . . . . 1 . . . . . . . . . . 3 . . . Recyclers Shooed 10 | . 1 . . . 2 . . . 1 . . . . . . . . . . 1 . . . 3 . . 1 . 1 . . . Parts Field Recycled . | . . . . . . . . . . . . . . . . . . . . . . . . . . . . . . . . . Retrieved Matter . | . . . . . . . . . . . . . . . . . . . . . . . . . . . . . . . . . Parts Self-Destructed 56 | . . . . . . . . . . 22 28 . 6 . . . . . . . . . . . . . . . . . . . Prevented 17 | . . . . . . . . . . . 5 . 12 . . . . . . . . . . . . . . . . . . . Parts Restored . | . . . . . . . . . . . . . . . . . . . . . . . . . . . . . . . . . Kills | -11 -10 -10 -10 -9 -8 -8 -8 -8 -7 -7 -7 -7 -6 -6 -6 -6 -6 -5 -5 -4 -4 -4 -4 -3 -3 -3 -2 -2 -2 -1 -1 -1 ------- Run | Yrd Mat Min Exi Min Mat Gar Mat Gar Fac Low Low Dat Pro Fac Gar Fac Gar Fac Gar Fac Gar Fac Gar Res Arm Lab Res Qua Sec Acc Com Ac0 Combat Hostiles Destroyed 547 | . 10 4 . 4 31 32 16 24 12 11 14 4 10 . 30 7 29 3 27 11 14 10 25 22 18 1 11 9 86 7 13 52 Melee 4 | . . . . 1 . 2 . . . . . . . . . . . . . . . 1 . . . . . . . . . . Guns 150 | . 10 4 . 1 19 9 10 10 5 11 7 . . . 8 4 8 . . . 1 . 9 10 6 1 3 2 12 . . . Cannons 166 | . . . . . . . 1 8 . . . . 1 . 3 3 10 3 11 7 9 3 12 10 8 . 4 4 33 4 7 25 AOE 166 | . . . . 2 12 20 2 6 5 . 7 . 6 . 14 . 6 . 16 4 3 6 2 . 2 . 4 2 26 3 5 13 Classes Destroyed 25 | 1 5 1 . 1 2 2 . 1 1 . . . 1 . 2 . 1 1 . . . . . . 1 . . 1 4 . . . Worker 17 | . 1 . . 1 . . . . 1 . . . . . . . . . . 1 . . . 3 . . 1 . 9 . . . Builder 12 | . . . . 2 1 . . . 1 . . . . . . . . 3 . 1 . . . . . . . . 4 . . . Tunneler 4 | 1 . . . 2 . . . . 1 . . . . . . . . . . . . . . . . . . . . . . . Hauler 13 | . 2 . . . 4 . 2 . 1 . . . . . . . . 1 . . . . . . . . . . 3 . . . Recycler 22 | . . 1 . 4 3 . 1 . 5 . . . . . . . . 2 . 1 . 1 . 1 . . . . 1 2 . . Mechanic 3 | . . . . . . . . . . . . . 1 . . . . . . . . . . . . . . . 2 . . . Watcher 7 | . . . . . . . . . 1 . . . . . 2 . . . . . . . . . 1 . . . . . 3 . Swarmer 109 | . 3 . . . 7 20 3 7 . 4 3 . . . 9 1 7 . 9 4 3 6 5 . 3 . 5 . . 1 1 8 Cutter 2 | . . . . . . . . . . . . . . . . . 2 . . . . . . . . . . . . . . . Saboteur 3 | . . . . . . . . . . . . . . . . . . . . . . . . . . . . . 2 1 . . Grunt 196 | . 6 3 . 3 13 7 7 3 8 6 5 . 9 . 9 5 15 . 15 . 8 . 12 9 . . 4 . 42 . 7 . Brawler 12 | . . . . . 1 . . . . . 3 . . . . . . . . . . . . 1 . . . . 6 . 1 . Duelist 12 | . . . . . 2 . 1 . . 1 . . . . 2 . . . . . . . . 2 1 . . . 3 . . . Protector 1 | . . . . . . . . . . . . . . . . . . . . . . . . . 1 . . . . . . . Researcher 3 | . . . . . . . . . . . . . . . . . . . . . . . . . . . . . 3 . . . Sentry 49 | . 1 1 . . 8 1 3 6 2 . 1 . . . 4 1 2 1 . 4 . 3 1 1 3 . . . 6 . . . Demolisher 2 | . . . . . . . . . . . . . . . 1 . 1 . . . . . . . . . . . . . . . Specialist 11 | . . . . . . 2 2 2 . . . . . . . . . . . . . . . 1 2 . . . . . 2 . Hunter 31 | . . . . . . . . 3 2 . 1 . . . 2 . . 1 . . 2 1 . . 1 . 2 . 9 4 1 2 Programmer 47 | . . . . . . 2 . 3 . . 1 . 1 . . . 2 . 1 3 . . 7 8 5 . . 4 10 . . . Heavy 2 | . . . . . . . . . . . . . . . . . . 1 . . . . . . 1 . . . . . . . Behemoth 9 | . . . . . . . . . . . . . . . 1 . 1 . . . 2 1 . . 1 . . . 2 1 . . S7 Guard 1 | . . . . . . . . . . . . . . . . . . . . . . . . . . . . . 1 . . . Enhanced Grunt 25 | . . . . . . . . . . . . 4 . . . . . . . . . . . . . . . . . . . 21 Enhanced Sentry 2 | . . . . . . . . . . . . . . . . . . . . . . . . . . . . . . . . 2 Enhanced Hunter 5 | . . . . . . . . . . . . . . . . . . . . . . . . . . . . . . . . 5 Enhanced Programmer 8 | . . . . . . . . . . . . . . . . . . . . . . . . . . . . . . . . 8 Tracker 4 | . . . . . . . . . . . . . . . . . . . . . . . . . . . . 2 2 . . . Combat Programmer 3 | . . . . . . . . . . . . . . . . . . . . . . . . . . . . 2 1 . . . Executioner 3 | . . . . . . . . . . . . . . . . . . . . . . . . . . . . . 2 . . 1 Alpha 7 3 | . . . . . . . . . . . . . . . . . . . . . . . . . . . . . 2 . 1 . Fortress 1 | . . . . . . . . . . . . . . . . . . . . . . . . . . . . 1 . . . . Decomposer 1 | . . . . . . . . . . . . . 1 . . . . . . . . . . . . . . . . . . . Wasp 3 | . . . . . . . . . . . . . . . . . . . . . . . . . . . . . . . . 3 Thug 3 | . . . . . . . . . . . . . . . 3 . . . . . . . . . . . . . . . . . Savage 2 | . . . . . . . . . . . . . . . . . . . 2 . . . . . . . . . . . . . Best Kill Streak 23 | 1 4 2 . 3 9 7 6 5 12 6 7 4 3 . 7 3 10 3 8 6 4 11 7 11 5 1 5 5 23 6 3 5 Combat Bots Only 21 | . 4 2 . 3 9 7 5 5 5 6 7 4 3 . 7 3 10 2 8 4 4 10 7 8 5 1 5 5 21 4 3 5 Max Kills in Single Turn 7 | 1 2 1 . 1 5 4 2 4 2 1 7 2 2 . 3 1 3 1 3 3 3 3 2 1 1 1 4 2 4 2 2 3 Gunslinging 1 | . 1 . . . . . . . . . . . . . . . . . . . . . . . . . . . . . . . Exploded 7 | . . . . 1 5 4 2 4 2 . 7 . 2 . 3 . 3 . 3 3 2 3 2 . 1 . 4 2 3 1 1 2 Melee 1 | . . . . 1 . 1 . . . . . . . . . . . . . . . 1 . . . . . . . . . . Uniques/NPCs Destroyed 6 | . . . . 1 . . . . . . . 1 . . . . . . . . . . . . . 1 . . . . . 3 YI-UF0 (-9/Mines) Data Miner (-7/Data Miner) A5 (-3/Lab) A6 (-1/Access_0) A4 (-1/Access_0) A3 (-1/Access_0) Combat | -11 -10 -10 -10 -9 -8 -8 -8 -8 -7 -7 -7 -7 -6 -6 -6 -6 -6 -5 -5 -4 -4 -4 -4 -3 -3 -3 -2 -2 -2 -1 -1 -1 -------- Run | Yrd Mat Min Exi Min Mat Gar Mat Gar Fac Low Low Dat Pro Fac Gar Fac Gar Fac Gar Fac Gar Fac Gar Res Arm Lab Res Qua Sec Acc Com Ac0 Hostile Shots Fired 3042 | . 51 9 . 17 80 99 57 157 74 43 86 5 29 . 180 49 98 13 58 38 79 64 173 100 79 17 52 106 700 118 35 376 Missed 855 | . 12 2 . 6 26 27 15 52 32 7 24 5 11 . 47 16 27 3 18 15 25 20 37 21 10 3 12 16 183 67 13 103 Hits 2187 | . 39 7 . 11 54 72 42 105 42 36 62 . 18 . 133 33 71 10 40 23 54 44 136 79 69 14 40 90 517 51 22 273 Melee 63 | . . . . . . . . . 1 6 3 . . . 1 . 1 . 3 . . . . 2 6 . 3 . 27 2 1 7 Projectile 2124 | . 39 7 . 11 54 72 42 105 41 30 59 . 18 . 132 33 70 10 37 23 54 44 136 77 63 14 37 90 490 49 21 266 AOE 19 | . . . . 12 . . . . . . . . . . 2 2 3 . . . . . . . . . . . . . . . Critical Strikes 125 | . . 1 . . 2 2 1 3 . 3 1 . . . 9 . . . 3 . 5 2 10 5 2 1 3 9 30 2 . 31 Actively Blocked 45 | . . . . . . . . . . . . . . . . . . . . . . . . . . . 2 . 10 2 . 31 Part Disruptions 5 | . . . . . . . . . . . . . . . . . . . . . . . . . . . . 1 1 . . 3 Damage Taken 30527 | . 489 98 . 446 772 1171 643 1089 513 413 808 . 458 . 1942 645 1461 496 700 239 641 299 1212 922 801 182 530 764 5351 579 268 6595 Core 2140 | . 46 13 . 95 59 159 51 126 84 34 30 . 34 . 191 19 112 117 18 . 15 23 88 77 . 12 11 70 238 19 . 399 Absorbed by Shields 14375 | . . . . . . . . 388 . 304 372 . . . . . . . 88 230 472 321 1137 929 837 187 511 731 4569 556 260 2483 Reduced by Siege Mode 1514 | . . . . . . . . . . . . . . . . . . . 5 . 19 4 132 83 80 39 66 28 538 . . 520 Redirected to Shielding 18 | . . . . . . . . . . . . . . . . . . . . . . . . . . . . . . . . 18 Ignored by Resistances 6443 | . . . . . 97 . . . . . . . . . 290 . . . . . 92 219 148 . . . . 1099 2445 . 18 2035 Regen/Repaired (Parts) 2462 | . . . . . 55 . . . . . 244 . . . . 91 . . . 292 . . . 168 . 7 81 92 375 256 134 667 Core Remaining (%) 79 | 100 . . . 100 . . . 21 . . . . 72 . . . 88 . 85 . . . 88 . . 92 . . 77 . . 76 Volleys Fired 1480 | 5 48 11 . 8 76 56 44 63 31 22 24 3 9 . 77 29 77 41 50 32 57 15 44 70 63 40 28 65 182 23 34 153 Largest 5 | 2 4 4 . 1 4 3 3 3 3 3 3 3 3 . 4 3 3 2 2 3 4 4 4 4 4 4 4 4 5 1 2 2 Hottest 900 | 40 80 80 . 56 181 139 156 156 136 136 108 108 180 . 188 146 188 195 195 153 308 388 293 295 333 333 333 340 900 200 900 900 Shots Fired 3202 | 10 93 44 . 8 221 124 123 162 68 67 75 9 26 . 195 62 132 44 73 62 107 38 158 184 172 64 66 109 477 23 45 161 Gun 1671 | 10 88 44 . 4 210 111 110 118 39 67 71 . . . 124 35 71 2 . . 5 6 82 83 75 17 25 29 234 . 6 5 Cannon 1277 | . . . . . . . 10 40 . . . . 6 . 22 27 45 42 59 55 97 27 74 97 95 45 38 80 212 23 39 144 Launcher 234 | . 5 . . 4 11 13 3 4 29 . 3 9 20 . 48 . 16 . 14 2 2 5 2 . 2 . 3 . 31 . . 8 Special 20 | . . . . . . . . . . . 1 . . . 1 . . . . 5 3 . . 4 . 2 . . . . . 4 Kinetic 1201 | 10 88 44 . . 136 59 40 87 22 53 71 . . . 102 35 73 10 22 50 38 6 41 44 38 8 15 17 86 . 6 . Thermal 1730 | . . . . 4 74 52 80 71 17 14 . . 6 . 44 27 43 34 37 5 52 27 115 136 132 54 48 92 360 23 39 144 Explosive 68 | . 5 . . 4 3 13 3 4 . . . . . . . . 1 . 14 2 2 2 2 . 2 . 3 . 8 . . . Electromagnetic 179 | . . . . . 8 . . . 29 . 3 9 20 . 48 . 15 . . . 12 3 . . . . . . 23 . . 9 Slashing 4 | . . . . . . . . . . . . . . . . . . . . . . . . . . . . . . . . 4 Robot Hit Streak 52 | 3 10 14 . 4 17 28 39 52 22 9 39 6 8 . 28 13 15 13 25 16 19 14 19 29 30 11 13 6 30 3 7 35 Robot Miss Streak 8 | 2 3 2 . 1 7 8 2 2 3 4 2 3 2 . 5 3 5 2 2 4 1 1 3 2 7 3 3 5 3 2 1 3 Penetration Max 1 | . . . . . . . . . . . . . . . 1 1 . . 1 1 1 . . 1 . . 1 . 1 . . 1 Secondary Targets 21 | . 3 1 . . 1 2 1 . . 6 2 . . . 3 1 1 . . . . . . . . . . . . . . . Max Gunslinging Chain 1 | . 1 1 . . 1 1 1 . . 1 1 . . . 1 1 1 . . . . . . . . . . . . . . . Capacitor 145 | . . . . . . . . . . . . . . . . . . . . . . . . . . . . . . . 21 124 Shots Hit Robots 2102 | 6 67 30 . 18 137 95 102 110 48 52 54 7 10 . 159 33 83 22 44 42 77 22 99 121 97 25 36 38 343 8 19 98 Core Hits 1217 | 3 32 13 . 12 69 45 40 38 32 25 27 11 21 . 87 14 54 7 50 17 27 16 42 44 43 12 26 17 256 12 15 110 Critical Kills 55 | . . . . . . 1 . . . . . . . . . . 10 3 5 8 6 . 4 3 1 . . . 6 . 1 7 Critical Parts Destroyed 55 | . 1 . . 2 1 2 . 2 . . . . . . . . 10 3 5 13 6 . 1 4 4 . . . 1 . . . Critical Strikes 141 | . 1 . . 2 7 9 6 4 1 . . . . . 1 . 20 6 10 22 18 . 5 7 6 1 . . 7 . 1 7 Burn 21 | . . . . . 6 6 6 2 1 . . . . . . . . . . . . . . . . . . . . . . . Meltdown 18 | . . . . . . . . . . . . . . . . . . 1 . . 1 . 2 . 1 . . . 5 . 1 7 Destroy 97 | . 1 . . . 1 1 . 2 . . . . . . . . 20 5 10 22 17 . 3 7 5 1 . . 2 . . . Smash 4 | . . . . 2 . 2 . . . . . . . . . . . . . . . . . . . . . . . . . . Sever 1 | . . . . . . . . . . . . . . . 1 . . . . . . . . . . . . . . . . . Melee Attacks 106 | . . . . 18 9 21 1 3 1 . . 1 . . 32 . 2 8 . . . . . . . . . 5 . . . 5 Kinetic 5 | . . . . . . . . . . . . . . . . . . . . . . . . . . . . 5 . . . . Impact 53 | . . . . 18 9 21 1 3 1 . . . . . . . . . . . . . . . . . . . . . . . Slashing 48 | . . . . . . . . . . . . 1 . . 32 . 2 8 . . . . . . . . . . . . . 5 Piercing . | . . . . . . . . . . . . . . . . . . . . . . . . . . . . . . . . . Sneak Attacks 16 | . . . . 10 . . . . 1 . . 1 . . . . . 4 . . . . . . . . . . . . . . Combat Hostiles . | . . . . . . . . . . . . . . . . . . . . . . . . . . . . . . . . . Follow-up Attacks . | . . . . . . . . . . . . . . . . . . . . . . . . . . . . . . . . . Damage Inflicted 109943 | 58 783 292 . 1414 3334 2804 1683 2282 1910 1043 1569 612 1551 . 6236 1040 2903 856 4526 1175 2773 1539 4106 4662 4282 608 2047 2161 24988 3034 3139 20533 Guns 26010 | 58 688 292 . 45 1939 1184 1251 1214 628 1043 1011 . . . 1846 547 1276 19 . . 93 55 1623 2226 1561 272 541 392 6065 . 138 3 Cannons 41020 | . . . . . . 55 230 675 . . . . 310 . 819 493 516 394 1169 786 2022 688 1878 2342 1960 336 833 1255 9381 1616 2233 11029 Explosions 38729 | . 72 . . 255 1359 1328 180 345 1202 . 558 550 1241 . 2037 . 1111 . 3357 299 658 771 605 . 761 . 645 277 9504 1345 768 9501 Melee 3593 | . . . . 1094 . 237 . . 60 . . 62 . . 1534 . . 443 . . . . . . . . . 163 . . . . Ramming 591 | . 23 . . 20 36 . 22 48 20 . . . . . . . . . . 90 . 25 . 94 . . 28 74 38 73 . . Kinetic 15204 | 58 688 292 . . 938 518 273 823 303 749 1011 . . . 1266 547 977 93 272 751 460 55 614 1039 648 113 278 301 1939 . 138 60 Thermal 67469 | . . . . 45 1001 721 1208 1066 325 294 182 96 450 . 1728 493 864 320 897 35 1453 688 2887 3529 2873 495 1096 1786 17144 2885 3001 19907 Explosive 13510 | . 72 . . 255 1103 1328 180 345 . . . . . . . . 157 . 3357 299 658 688 605 . 761 . 645 . 2981 76 . . Electromagnetic 9298 | . . . . . 256 . . . 1202 . 376 454 1101 . 1708 . 905 . . . 202 83 . . . . . . 2445 . . 566 Impact 1391 | . . . . 1094 . 237 . . 60 . . . . . . . . . . . . . . . . . . . . . . . Slashing 2039 | . . . . . . . . . . . . 62 . . 1534 . . 443 . . . . . . . . . . . . . . Piercing . | . . . . . . . . . . . . . . . . . . . . . . . . . . . . . . . . . Entropic 441 | . . . . . . . . . . . . . . . . . . . . . . . . . . . . . 441 . . . Highest Corruption 32 | . 12 . . 1 3 8 . 5 1 1 16 . 1 . 20 20 20 6 6 2 18 . 5 23 28 32 . 4 31 . 10 12 Average Corruption 9 | . 12 . . 1 3 7 . 4 1 1 14 . 1 . 15 20 7 6 6 1 12 . 4 7 25 31 . 2 13 . 5 4 Corruption Purged 50 | . . . . . . . . . . . . . . . . . . . . . . . . . . . . . . . 19 31 Corruption Blocked . | . . . . . . . . . . . . . . . . . . . . . . . . . . . . . . . . . Effects 547 | . 1 . . 1 34 33 . 27 1 1 56 . 4 . 80 32 43 . 31 2 23 . 19 11 45 26 . 8 54 . 9 6 Message Errors 133 | . . . . 1 10 8 . 4 . . 12 . 2 . 24 4 11 . 6 . 3 . 3 2 14 6 . 4 16 . 2 1 Matter Fused 127 | . 1 . . . 7 8 . 5 . . 13 . . . 19 5 13 . 11 . 8 . 5 2 8 5 . 3 8 . 4 2 Heat Flow Errors 51 | . . . . . 3 4 . 2 1 . 6 . . . 8 2 1 . 1 1 2 . 5 2 5 4 . . 2 . 2 . Energy Discharges 60 | . . . . . 1 4 . 8 . . 5 . 1 . 9 4 4 . 4 . 2 . 3 2 6 2 . . 5 . . . Parts Rejected 7 | . . . . . 2 2 . . . . . . . . . . . . . . 1 . . . 1 . . . 1 . . . Parts Fused 7 | . . . . . 2 . . . . . 1 . . . 1 . . . . . 1 . . 1 . . . . . . . 1 Data Loss (minor) 54 | . . . . . 3 . . 3 . . 8 . . . 10 3 4 . 4 1 1 . 1 . 3 3 . . 9 . 1 . Data Loss (major) 31 | . . . . . 1 3 . 2 . . 5 . . . 3 1 2 . 3 . 3 . . 1 2 1 . . 3 . . 1 Misfires 26 | . . . . . 1 1 . 2 . . 4 . 1 . 2 7 4 . . . . . . . . 1 . . 2 . . 1 Alerts 16 | . . . . . 2 1 . 1 . 1 1 . . . 1 2 1 . 2 . . . 1 1 . . . 1 1 . . . Misdirections 4 | . . . . . . . . . . . . . . . . 1 1 . . . . . . . 2 . . . . . . . Weapon Failures 31 | . . . . . 2 2 . . . . 1 . . . 3 3 2 . . . 2 . 1 . 4 4 . . 7 . . . Overload Shots . | . . . . . . . . . . . . . . . . . . . . . . . . . . . . . . . . . Overflow Damage 5964 | . . . . 413 110 199 12 28 35 . . . 57 . 146 22 9 95 182 21 55 2 42 218 131 . 16 150 1371 397 698 1555 Projectiles 3554 | . . . . . . 15 . . . . . . 52 . 30 22 . 20 28 15 . . 42 212 39 . 14 150 1069 369 586 891 Explosions 1800 | . . . . . 110 113 12 28 . . . . 5 . 116 . 9 . 154 . 55 2 . . 92 . 2 . 302 24 112 664 Melee 610 | . . . . 413 . 71 . . 35 . . . . . . . . 75 . 6 . . . 6 . . . . . 4 . . Knockbacks 28 | . . . . 5 1 . . . 1 . . . . . . . 9 . 2 3 2 . . 1 . . . 2 . 2 . . Impact 13 | . . . . 5 1 . . . 1 . . . . . . . . . . 1 . . . 1 . . . 2 . 2 . . Kinetic 15 | . . . . . . . . . . . . . . . . . 9 . 2 2 2 . . . . . . . . . . . Secondary . | . . . . . . . . . . . . . . . . . . . . . . . . . . . . . . . . . Self-Inflicted Damage 1631 | . . . . . 89 73 . . . . 4 . 139 . 308 . . . 33 . . 38 . . 59 . . . 192 56 121 519 Shots 54 | . . . . . 2 2 . . . . 1 . 8 . 11 . . . 1 . . 3 . . 2 . . . 12 1 2 9 Rammed 43 | . 8 . . 3 4 . 1 7 . . . . . . . . . 1 . 5 . 1 . 5 . . 1 2 3 2 . . Targets Rammed 47 | . 8 . . 3 6 . 1 7 1 . . . . . . . . 1 . 5 . 1 . 5 . . 1 2 4 2 . . Kicked . | . . . . . . . . . . . . . . . . . . . . . . . . . . . . . . . . . Crushed 4 | . . . . . 2 . . . 1 . . . . . . . . . . . . . . . . . . . 1 . . . Highest Temperature 665 | . 40 250 . 52 204 280 239 194 166 339 407 86 380 . 665 429 358 581 354 305 540 274 342 538 372 248 204 106 527 152 300 194 Average Temperature 106 | . 10 111 . 16 56 82 84 49 59 96 102 40 127 . 135 160 94 147 103 107 151 127 113 135 108 110 64 58 134 54 98 93 Received Heat Transfer 4786 | . 204 63 . . 387 306 288 90 123 148 210 . 108 . 1058 213 318 18 163 28 91 20 137 150 32 . 36 16 522 12 29 16 Effects 59 | . . . . . . . . . . 1 2 . 2 . 18 6 3 9 1 . 5 . 3 2 . . . . 7 . . . Shutdowns 21 | . . . . . . . . . . . 1 . . . 3 4 1 5 . . 3 . 1 1 . . . . 2 . . . Energy Bleed 9 | . . . . . . . . . . . . . 2 . 2 1 2 1 . . . . . 1 . . . . . . . . Interference 18 | . . . . . . . . . . . . . . . 10 . . 1 1 . . . 2 . . . . . 4 . . . Matter Decay 1 | . . . . . . . . . . . . . . . . 1 . . . . . . . . . . . . . . . . Short Circuit 2 | . . . . . . . . . . 1 . . . . . . . . . . . . . . . . . . 1 . . . Damage (minor) 7 | . . . . . . . . . . . 1 . . . 3 . . 1 . . 2 . . . . . . . . . . . Damage (major) 1 | . . . . . . . . . . . . . . . . . . 1 . . . . . . . . . . . . . . Siege Activations 82 | . . . . . . . . . . . . . . . . . 1 . 2 . 6 4 9 6 8 1 4 2 18 . 1 20 Total Turns 1354 | . . . . . . . . . . . . . . . . . 1 . 18 . 43 27 126 101 93 20 37 19 335 . 36 498 Longest Duration 192 | . . . . . . . . . . . . . . . . . 1 . 13 . 22 17 33 36 23 20 15 12 46 . 36 192 Martial Activations . | . . . . . . . . . . . . . . . . . . . . . . . . . . . . . . . . . Shielding Activations . | . . . . . . . . . . . . . . . . . . . . . . . . . . . . . . . . . Robots Disrupted 2 | . . . . . . . . . . . . . . . 1 . . . . . . . . . . . . . 1 . . . Combat Hostiles 2 | . . . . . . . . . . . . . . . 1 . . . . . . . . . . . . . 1 . . . Robots Corrupted 44 | . . . . 5 . . 1 . 4 . . 4 3 . 6 . 5 . . 1 2 . . 1 . . . . 8 1 . 3 Combat Hostiles 30 | . . . . . . . . . 2 . . 4 3 . 4 . 5 . . . 2 . . . . . . . 7 . . 3 Parts Fried 106 | . . . . 8 2 . 1 . 15 . . 8 6 . 13 . 11 . . 1 1 . . 3 . . . . 19 1 . 17 Impact Corruptions 24 | . . . . 15 . 3 1 . 2 . . . . . . . . . . 1 . . . 1 . . . . . 1 . . Robots Melted 28 | . . . . . . 1 3 . . . . . . . . . . 1 . . 1 . 2 2 2 . . . 8 . 1 7 Combat Hostiles 27 | . . . . . . 1 3 . . . . . . . . . . . . . 1 . 2 2 2 . . . 8 . 1 7 Parts Melted 115 | . . . . . 4 4 11 6 2 . . . . . 1 . 2 4 . . 4 2 9 8 8 . 3 4 37 . 2 4 Heat Transferred 60548 | . . . . 111 2220 1850 3225 2340 825 675 250 100 150 . 1468 700 1625 335 862 50 1703 720 2886 3820 2586 538 999 1326 14733 1622 1351 11478 Parts Sabotaged 5 | . . . . . . . . . . . . . . . . . . . . . . . . . 1 . . . 4 . . . Parts Stolen . | . . . . . . . . . . . . . . . . . . . . . . . . . . . . . . . . . Parts Stripped 18 | . . . . . . . . . . . . . . . . . . . . . . . . . . . . 18 . . . . Power Chain Reactions 23 | . . . . . 2 . . . 1 . 1 1 2 . 8 . 3 . . . . . . . . . . . 5 . . . Alert | -11 -10 -10 -10 -9 -8 -8 -8 -8 -7 -7 -7 -7 -6 -6 -6 -6 -6 -5 -5 -4 -4 -4 -4 -3 -3 -3 -2 -2 -2 -1 -1 -1 ------- Run | Yrd Mat Min Exi Min Mat Gar Mat Gar Fac Low Low Dat Pro Fac Gar Fac Gar Fac Gar Fac Gar Fac Gar Res Arm Lab Res Qua Sec Acc Com Ac0 Maximum Alert Level 5 | . . . . 1 1 4 3 4 3 . . . . . 4 3 5 3 5 3 4 4 4 3 2 . 2 1 5 5 5 . Low Security (%) 17 | 100 100 100 . 86 54 8 . . . . . . . 100 16 . . . . . . . . . 7 . 48 60 11 . . . Level 1 6 | . . . . 13 45 2 . 5 . . . . . . 1 . . . . . . . . . 17 . 41 39 . . . . Level 2 15 | . . . . . . 14 36 26 57 . . . . . 29 54 7 . 23 39 39 . . 21 75 . 9 . 20 . . . Level 3 25 | . . . . . . 39 63 56 42 . . . . . 48 45 19 100 15 60 38 73 35 78 . . . . 28 . . . Level 4 13 | . . . . . . 35 . 11 . . . . . . 4 . 52 . 56 . 21 26 64 . . . . . 26 19 . . Level 5 20 | . . . . . . . . . . . . . . . . . 20 . 5 . . . . . . . . . . 24 99 . High Security 1 | . . . . . . . . . . . . . . . . . . . . . . . . . . . . . 12 56 . . Max Security . | . . . . . . . . . . . . . . . . . . . . . . . . . . . . . . . . . Peak Influence 2612 | 5 129 163 . 218 346 1359 891 1115 801 . . . . . 1212 894 1649 865 1668 953 1568 1153 1428 1003 577 . 410 259 2612 2035 1296 . Initial 1560 | . . 48 . . 68 164 662 343 585 . . . . . . 636 604 865 521 875 430 823 786 803 501 . . 220 128 1560 1296 . Average 706 | . 29 107 . 61 175 883 722 803 641 . . . . . 661 706 1284 802 1178 706 847 927 1165 846 429 . 216 176 1009 1759 1296 . Influence Increases 27166 | 5 407 215 . 373 1011 1275 502 822 476 311 315 20 230 . 1352 500 1115 274 1147 468 1178 430 652 706 733 . 621 365 3203 535 1355 6570 Destroy 0b10 Robot/C 10900 | . 220 160 . 80 640 640 340 480 300 220 280 20 200 . 600 220 660 80 540 220 540 220 500 440 340 . 300 180 1860 140 220 260 Destroy 0b10 Robot/NC 515 | 5 25 5 . 45 40 . 20 . 50 . . . . . 45 50 5 30 . 15 10 5 . 20 10 . 15 . 100 10 10 . Destroy Leader 1570 | . 56 20 . 10 148 20 84 30 74 30 20 . 30 . 50 40 40 32 50 70 30 60 60 90 104 . 52 50 288 30 2 . Allied During Kill 592 | . 4 15 . 5 16 . 8 . 13 1 . . . . 16 73 105 16 . . 146 7 . 3 34 . 80 . 50 . . . Trap Triggered on 0b10 10 | . . . . . . . . . . . . . . . . . . . . 10 . . . . . . . . . . . . Successful Hack 136 | . 19 . . . 3 30 . 14 8 . . . . . 14 16 . . . . 14 . . . 18 . . . . . . . Select Force Hacks 30 | . 30 . . . . . . . . . . . . . . . . . . . . . . . . . . . . . . . Disable Machine 1095 | . 30 15 . . 60 . . 15 30 . . . . . . 15 . 15 30 75 . 15 15 75 90 . . 30 150 75 150 210 Anti-Garrison Action 1750 | . . . . . . 400 . 200 . . . . . . 550 . 200 . 200 . 200 . . . . . . . . . . . Destroy Structure 9730 | . 8 . . 25 74 125 20 68 1 . . . . . 62 56 75 56 267 78 163 108 47 78 122 . 174 105 680 280 973 6085 Lose Combat Pursuer 630 | . 15 . . . 30 60 30 15 . 60 15 . . . 15 30 30 45 60 . 75 15 30 . 15 . . . 75 . . 15 Miscellaneous 208 | . . . . 208 . . . . . . . . . . . . . . . . . . . . . . . . . . . . Influence Decreases 20706 | 5 282 257 83 198 933 169 1333 235 856 831 530 20 230 . 140 848 330 1178 224 1521 225 875 347 1177 1282 408 229 528 830 1112 729 2761 Entered New Map 12171 | . . 77 83 . 107 89 697 185 530 273 42 . . . . 576 260 784 224 793 185 745 337 625 456 408 . 172 101 1042 729 2651 Time Decay 5802 | 5 272 140 . 178 586 . 246 . 326 538 398 20 230 . . 262 . 334 . 278 . 130 . 342 356 . 186 356 559 60 . . Lost Part 650 | . 10 . . 20 10 80 30 50 . . 50 . . . 140 10 50 20 . . . . 10 . 20 . . . 70 10 . 70 Lost Ally 540 | . . 40 . . 80 . 60 . . 20 40 . . . . . 20 40 . . 40 . . 60 . . . . 100 . . 40 Purge Threat 1543 | . . . . . 150 . 300 . . . . . . . . . . . . 450 . . . 150 450 . 43 . . . . . Squads Dispatched 79 | . 3 2 . . 6 . 3 . 3 . 1 . . . . 2 . 3 . 4 . 4 . 7 3 . 2 3 29 4 . . Investigation 5 | . 1 1 . . . . 1 . . . . . . . . . . . . . . 1 . . 1 . . . . . . . Extermination 15 | . . . . . . . . . 1 . . . . . . 2 . 1 . . . . . 2 2 . 1 2 4 . . . Reinforcement 24 | . 2 . . . 3 . 1 . 2 . . . . . . . . 2 . 1 . . . 2 . . 1 . 10 . . . Assault 21 | . . 1 . . . . . . . . 1 . . . . . . . . . . . . 2 . . . . 13 4 . . Garrison 11 | . . . . . 3 . 1 . . . . . . . . . . . . 3 . 3 . . . . . . 1 . . . Intercept 3 | . . . . . . . . . . . . . . . . . . . . . . . . 1 . . . 1 1 . . . Searches Triggered . | . . . . . . . . . . . . . . . . . . . . . . . . . . . . . . . . . Construction Impeded 1 | . . . . . . . . . . . . . . . . . . . . . . . . . . . . . 1 . . . Haulers Reinforced 3 | . . . . . . . . . 1 . . . . . . . . . . . . . . . . . . . 2 . . . Active Scanning Responses . | . . . . . . . . . . . . . . . . . . . . . . . . . . . . . . . . . Cargo Convoy Interrupts . | . . . . . . . . . . . . . . . . . . . . . . . . . . . . . . . . . Alert ID Control Effect 12 | . . . . . . . . . . . . . . . . . . . . . . . . 6 6 . . . . . . . Stealth | -11 -10 -10 -10 -9 -8 -8 -8 -8 -7 -7 -7 -7 -6 -6 -6 -6 -6 -5 -5 -4 -4 -4 -4 -3 -3 -3 -2 -2 -2 -1 -1 -1 --------- Run | Yrd Mat Min Exi Min Mat Gar Mat Gar Fac Low Low Dat Pro Fac Gar Fac Gar Fac Gar Fac Gar Fac Gar Res Arm Lab Res Qua Sec Acc Com Ac0 Distress Signals 39 | . . . . . 2 . 2 . 1 . . . . . . 1 . 1 . 1 4 . . 4 2 . 3 . 4 1 13 . Communications Jammed 128 | . . . . . . . . . . . . . . . . . . 11 . 2 . . . . . . . . 115 . . . Distress Signals 120 | . . . . . . . . . . . . . . . . . . 3 . 2 . . . . . . . . 115 . . . Times Spotted 739 | . 25 3 . 5 44 25 26 22 17 14 20 4 10 . 29 12 37 7 27 17 32 11 25 40 26 1 22 10 132 18 15 63 Peak Tracking Total 10 | . 6 3 . 2 9 7 5 5 4 7 9 4 4 . 4 4 5 5 9 6 6 4 8 6 9 1 7 5 10 7 3 5 Tactical Retreats 31 | . 1 . . . 2 2 2 1 . 2 1 . . . 1 1 1 2 4 . 2 1 2 . 1 . . . 3 . . 2 Traps | -11 -10 -10 -10 -9 -8 -8 -8 -8 -7 -7 -7 -7 -6 -6 -6 -6 -6 -5 -5 -4 -4 -4 -4 -3 -3 -3 -2 -2 -2 -1 -1 -1 ------- Run | Yrd Mat Min Exi Min Mat Gar Mat Gar Fac Low Low Dat Pro Fac Gar Fac Gar Fac Gar Fac Gar Fac Gar Res Arm Lab Res Qua Sec Acc Com Ac0 Traps Triggered 45 | . . . . 2 . 4 . 2 3 . . . . . 12 . 8 . . . 2 1 1 1 . . . . 4 . 5 . Indirectly 14 | . . . . . . . . . 2 . . . . . 9 . . . . . . . . . . . . . 3 . . . Trap Hack Attempts . | . . . . . . . . . . . . . . . . . . . . . . . . . . . . . . . . . Triggered . | . . . . . . . . . . . . . . . . . . . . . . . . . . . . . . . . . Disarmed . | . . . . . . . . . . . . . . . . . . . . . . . . . . . . . . . . . Reprogrammed . | . . . . . . . . . . . . . . . . . . . . . . . . . . . . . . . . . Reused 1 | . . . . . . . . . . . . . . . . . . . . 1 . . . . . . . . . . . . Traps Extracted . | . . . . . . . . . . . . . . . . . . . . . . . . . . . . . . . . . Installed 3 | . . . . . . . . . . . . . . . . . . . . 3 . . . . . . . . . . . . Triggered 1 | . . . . . . . . . . . . . . . . . . . . 1 . . . . . . . . . . . . Most Traps Carried 3 | . . . . . . . . . . . . . . . . . . . . 3 . . . . . . . . . . . . Machines | -11 -10 -10 -10 -9 -8 -8 -8 -8 -7 -7 -7 -7 -6 -6 -6 -6 -6 -5 -5 -4 -4 -4 -4 -3 -3 -3 -2 -2 -2 -1 -1 -1 ---------- Run | Yrd Mat Min Exi Min Mat Gar Mat Gar Fac Low Low Dat Pro Fac Gar Fac Gar Fac Gar Fac Gar Fac Gar Res Arm Lab Res Qua Sec Acc Com Ac0 Machines Disabled 106 | . 2 1 . . 4 3 . 3 2 . 1 . . . 3 1 1 1 3 5 4 1 2 5 6 5 1 2 13 5 10 22 Max in Single Turn 5 | . 2 . . . 2 1 . 1 1 . 1 . . . 1 . 1 1 1 2 1 1 1 1 1 1 . 1 2 2 5 4 Garrison Access 1 | . . . . . . . . . . . . . . . . . . . . . . . . . . . 1 . . . . . Garrison Relay 9 | . . . . . . 3 . 1 . . . . . . 2 . 1 . 1 . 1 . . . . . . . . . . . Machines Repaired . | . . . . . . . . . . . . . . . . . . . . . . . . . . . . . . . . . Machines Dismantled . | . . . . . . . . . . . . . . . . . . . . . . . . . . . . . . . . . Machines Sabotaged . | . . . . . . . . . . . . . . . . . . . . . . . . . . . . . . . . . Overloaded Fab Kills . | . . . . . . . . . . . . . . . . . . . . . . . . . . . . . . . . . Hacking | -11 -10 -10 -10 -9 -8 -8 -8 -8 -7 -7 -7 -7 -6 -6 -6 -6 -6 -5 -5 -4 -4 -4 -4 -3 -3 -3 -2 -2 -2 -1 -1 -1 --------- Run | Yrd Mat Min Exi Min Mat Gar Mat Gar Fac Low Low Dat Pro Fac Gar Fac Gar Fac Gar Fac Gar Fac Gar Res Arm Lab Res Qua Sec Acc Com Ac0 Machines Accessed 57 | . 4 . 2 1 7 2 2 2 1 . . 3 . 1 2 3 1 1 1 2 1 2 2 1 7 2 2 1 3 . . 1 Terminals 32 | . 3 . . . 3 2 1 2 1 . . . . . 2 1 1 . 1 . 1 . 2 1 7 . 1 . 3 . . . Fabricators 2 | . . . . . . . . . . . . . . . . . . . . 1 . 1 . . . . . . . . . . Repair Stations 2 | . . . . . 1 . . . . . . . . . . 1 . . . . . . . . . . . . . . . . Recycling Units 1 | . 1 . . . . . . . . . . . . . . . . . . . . . . . . . . . . . . . Scanalyzers 3 | . . . . . 2 . . . . . . . . . . . . . . . . . . . . . . 1 . . . . Garrison Access 8 | . . . . . 1 . 1 . . . . . . 1 . 1 . 1 . 1 . 1 . . . . 1 . . . . . Total Hacks 158 | . 9 . 2 1 16 4 6 4 2 . . 20 . 1 4 5 3 1 3 4 3 3 4 4 13 20 2 2 5 . . 17 Successful 108 | . 5 . 2 1 9 2 3 1 1 . . 20 . 1 1 4 . 1 . 3 1 3 . 2 6 20 2 1 2 . . 17 Failed 50 | . 4 . . . 7 2 3 3 1 . . . . . 3 1 3 . 3 1 2 . 4 2 7 . . 1 3 . . . Catastrophic 17 | . 1 . . . 3 1 . 1 1 . . . . . 2 . . . 1 1 1 . 1 . 3 . . . 1 . . . Database Lockouts . | . . . . . . . . . . . . . . . . . . . . . . . . . . . . . . . . . Manual 32 | . 12 . 1 . 3 2 . . 2 . . . . . . 2 . . . . . . . . 9 . 1 . . . . . Terminals 71 | . 8 . . . 6 4 5 4 2 . . . . . 4 2 3 . 3 . 3 . 4 4 13 . 1 . 5 . . . Fabricators 5 | . . . . . . . . . . . . . . . . . . . . 3 . 2 . . . . . . . . . . Repair Stations 4 | . . . . . 2 . . . . . . . . . . 2 . . . . . . . . . . . . . . . . Recycling Units 1 | . 1 . . . . . . . . . . . . . . . . . . . . . . . . . . . . . . . Scanalyzers 9 | . . . . . 7 . . . . . . . . . . . . . . . . . . . . . . 2 . . . . Garrison Access 8 | . . . . . 1 . 1 . . . . . . 1 . 1 . 1 . 1 . 1 . . . . 1 . . . . . Terminal Hacks 81 | . 4 . 2 1 1 2 2 1 1 . . 20 . . 1 . . . . . 1 . . 2 3 20 1 . 2 . . 17 Record 43 | . . . 1 . . . . . . . . 6 . . . . . . . . . . . . . 19 . . . . . 17 Part Schematic 9 | . 1 . . . . . . . . . . 8 . . . . . . . . . . . . . . . . . . . . Robot Schematic 4 | . 1 . . . . . . . . . . 3 . . . . . . . . . . . . . . . . . . . . Robot Analysis 2 | . 2 . . . . . . . . . . . . . . . . . . . . . . . . . . . . . . . Prototype ID Bank 3 | . . . . . . . . . . . . 3 . . . . . . . . . . . . . . . . . . . . Open Door 3 | . . . . 1 . . . . . . . . . . . . . . . . . . . . . . . . 2 . . . Branch Access Points 2 | . . . . . . . . . 1 . . . . . . . . . . . . . . 1 . . . . . . . . Emergency Access Points 3 | . . . . . . 1 . . . . . . . . 1 . . . . . 1 . . . . . . . . . . . Unreport Threat 8 | . . . . . 1 . 2 . . . . . . . . . . . . . . . . 1 3 . 1 . . . . . Garrison Registry 1 | . . . . . . . . 1 . . . . . . . . . . . . . . . . . . . . . . . . Security Stations 1 | . . . . . . 1 . . . . . . . . . . . . . . . . . . . . . . . . . . Proto ID Catalog 1 | . . . 1 . . . . . . . . . . . . . . . . . . . . . . . . . . . . . Release Object 1 | . . . . . . . . . . . . . . . . . . . . . . . . . . 1 . . . . . . Fabricator Hacks 4 | . . . . . . . . . . . . . . . . . . . . 2 . 2 . . . . . . . . . . Load Schematic 2 | . . . . . . . . . . . . . . . . . . . . 1 . 1 . . . . . . . . . . Build 2 | . . . . . . . . . . . . . . . . . . . . 1 . 1 . . . . . . . . . . Repair Station Hacks 4 | . . . . . 2 . . . . . . . . . . 2 . . . . . . . . . . . . . . . . Scan Component 2 | . . . . . 1 . . . . . . . . . . 1 . . . . . . . . . . . . . . . . Repair 2 | . . . . . 1 . . . . . . . . . . 1 . . . . . . . . . . . . . . . . Recycling Unit Hacks . | . . . . . . . . . . . . . . . . . . . . . . . . . . . . . . . . . Scanalyzer 6 | . . . . . 5 . . . . . . . . . . . . . . . . . . . . . . 1 . . . . Insert Component 1 | . . . . . . . . . . . . . . . . . . . . . . . . . . . . 1 . . . . Retrieve Study 5 | . . . . . 5 . . . . . . . . . . . . . . . . . . . . . . . . . . . Garrison Access Hacks 8 | . . . . . 1 . 1 . . . . . . 1 . 1 . 1 . 1 . 1 . . . . 1 . . . . . Unlock Access 7 | . . . . . 1 . 1 . . . . . . 1 . 1 . 1 . 1 . 1 . . . . . . . . . . Seal Access 1 | . . . . . . . . . . . . . . . . . . . . . . . . . . . 1 . . . . . Unauthorized Hacks 5 | . 1 . . . . . . . . . . . . . . 1 . . . . . . . . 3 . . . . . . . Terminals 4 | . . . . . . . . . . . . . . . . 1 . . . . . . . . 3 . . . . . . . Botnet 4 | . . . . . . . . . . . . . . . . 1 . . . . . . . . 3 . . . . . . . Fabricators . | . . . . . . . . . . . . . . . . . . . . . . . . . . . . . . . . . Repair Stations . | . . . . . . . . . . . . . . . . . . . . . . . . . . . . . . . . . Recycling Units 1 | . 1 . . . . . . . . . . . . . . . . . . . . . . . . . . . . . . . Tunnel 1 | . 1 . . . . . . . . . . . . . . . . . . . . . . . . . . . . . . . Scanalyzers . | . . . . . . . . . . . . . . . . . . . . . . . . . . . . . . . . . Garrison Access . | . . . . . . . . . . . . . . . . . . . . . . . . . . . . . . . . . Data Cores Recovered . | . . . . . . . . . . . . . . . . . . . . . . . . . . . . . . . . . Used . | . . . . . . . . . . . . . . . . . . . . . . . . . . . . . . . . . Hacking Detections 36 | . 2 . . . 7 2 2 1 1 . . . . 1 2 . 1 . 1 2 1 1 2 1 7 . . 1 1 . . . Full Trace Events 7 | . . . . . . 1 . 1 . . . . . . 1 . 1 . 1 . 1 1 . . . . . . . . . . Feedback Events 2 | . . . . . . . . 1 . . . . . . . . 1 . . . . . . . . . . . . . . . Corruption 2 | . . . . . . . . 1 . . . . . . . . 1 . . . . . . . . . . . . . . . Feedback Blocked . | . . . . . . . . . . . . . . . . . . . . . . . . . . . . . . . . . Robot Schematics Acquired 4 | . 1 . . . . . . . . . . 3 . . . . . . . . . . . . . . . . . . . . Robots Built 1 | . . . . . . . . . . . . . . . . . . . . 1 . . . . . . . . . . . . Authchips 1 | . . . . . . . . . . . . . . . . . . . . 1 . . . . . . . . . . . . Time 40 | . . . . . . . . . . . . . . . . . . . . 40 . . . . . . . . . . . . Total Robot Build Rating 1 | . . . . . . . . . . . . . . . . . . . . 1 . . . . . . . . . . . . Part Schematics Acquired 10 | . 1 . . . . . . . . . . 8 . . . . . . . . . . . . . . . . 1 . . . Parts Built 1 | . . . . . . . . . . . . . . . . . . . . . . 1 . . . . . . . . . . Authchips . | . . . . . . . . . . . . . . . . . . . . . . . . . . . . . . . . . Time 51 | . . . . . . . . . . . . . . . . . . . . . . 51 . . . . . . . . . . Total Part Build Rating 1 | . . . . . . . . . . . . . . . . . . . . . . 1 . . . . . . . . . . Part Studies Acquired 5 | . . . . . 5 . . . . . . . . . . . . . . . . . . . . . . . . . . . Parts Repaired 2 | . . . . . 1 . . . . . . . . . . 1 . . . . . . . . . . . . . . . . Time 52 | . . . . . 26 . . . . . . . . . . 26 . . . . . . . . . . . . . . . . Parts Recycled . | . . . . . . . . . . . . . . . . . . . . . . . . . . . . . . . . . Recycled Matter . | . . . . . . . . . . . . . . . . . . . . . . . . . . . . . . . . . Retrieved Matter . | . . . . . . . . . . . . . . . . . . . . . . . . . . . . . . . . . Retrieved Components . | . . . . . . . . . . . . . . . . . . . . . . . . . . . . . . . . . Parts Scanalyzed . | . . . . . . . . . . . . . . . . . . . . . . . . . . . . . . . . . Part Schematics Acquired . | . . . . . . . . . . . . . . . . . . . . . . . . . . . . . . . . . Parts Damaged . | . . . . . . . . . . . . . . . . . . . . . . . . . . . . . . . . . Bothacking | -11 -10 -10 -10 -9 -8 -8 -8 -8 -7 -7 -7 -7 -6 -6 -6 -6 -6 -5 -5 -4 -4 -4 -4 -3 -3 -3 -2 -2 -2 -1 -1 -1 ------------ Run | Yrd Mat Min Exi Min Mat Gar Mat Gar Fac Low Low Dat Pro Fac Gar Fac Gar Fac Gar Fac Gar Fac Gar Res Arm Lab Res Qua Sec Acc Com Ac0 Used RIF Installer 7 | . . . . . . 1 . 1 . . . . . . 1 . 1 . 1 . 1 . 1 . . . . . . . . . Coupler Efficiency 1 | . . . . . . . . . . . . . . . . . . . 1 . . . . . . . . . . . . . Command Fork 1 | . . . . . . . . . . . . . . . . . 1 . . . . . . . . . . . . . . . Watcher Feeds 1 | . . . . . . . 1 . . . . . . . . . . . . . . . . . . . . . . . . . Patrol Navigation 1 | . . . . . . . . 1 . . . . . . . . . . . . . . . . . . . . . . . . Alert ID Control 1 | . . . . . . . . . . . . . . . . . . . . . 1 . . . . . . . . . . . Autooverride 1 | . . . . . . . . . . . . . . . . . . . . . . . 1 . . . . . . . . . Autoassimilate 1 | . . . . . . . . . . . . . . . 1 . . . . . . . . . . . . . . . . . Robots Hacked 9 | . . . . . . . . . . . 1 . . . . . . . . 1 3 . . 4 . . . . . . . . Non-combat 3 | . . . . . . . . . . . 1 . . . . . . . . 1 . . . 1 . . . . . . . . Combat 6 | . . . . . . . . . . . . . . . . . . . . . 3 . . 3 . . . . . . . . Robot Hacks Applied 12 | . . . . . . . . . . . 1 . . . . . . . . 4 3 . . 4 . . . . . . . . purge_threat 4 | . . . . . . . . . . . . . . . . . . . . 4 . . . . . . . . . . . . disable_weapons 1 | . . . . . . . . . . . . . . . . . . . . . 1 . . . . . . . . . . . formatsys_low 2 | . . . . . . . . . . . 1 . . . . . . . . . . . . 1 . . . . . . . . formatsys_high 5 | . . . . . . . . . . . . . . . . . . . . . 2 . . 3 . . . . . . . . Relay Couplers Released 38 | . . . . . . 12 . 5 . . . . . . 9 . 3 . 5 . 3 . . . . . 1 . . . . . Machine Destruction 38 | . . . . . . 12 . 5 . . . . . . 9 . 3 . 5 . 3 . . . . . 1 . . . . . Attached 5 | . . . . . . . . . . . 1 . . . . . . . . 1 1 . . 2 . . . . . . . . Fabnet Peak Effective % . | . . . . . . . . . . . . . . . . . . . . . . . . . . . . . . . . . Robots Rewired 8 | . . . . . . . . 1 . . 2 . . . 3 . . . . . 2 . . . . . . . . . . . Allies Hacked 3 | . . . . . . . . . . . . . . . . . . . . . . . . 2 . . . . 1 . . . Hacks Repelled . | . . . . . . . . . . . . . . . . . . . . . . . . . . . . . . . . . Allies | -11 -10 -10 -10 -9 -8 -8 -8 -8 -7 -7 -7 -7 -6 -6 -6 -6 -6 -5 -5 -4 -4 -4 -4 -3 -3 -3 -2 -2 -2 -1 -1 -1 -------- Run | Yrd Mat Min Exi Min Mat Gar Mat Gar Fac Low Low Dat Pro Fac Gar Fac Gar Fac Gar Fac Gar Fac Gar Res Arm Lab Res Qua Sec Acc Com Ac0 Total Allies 41 | . 3 1 . . 3 . 3 1 . . 3 . . . 3 . 2 . . 1 4 . . 5 . . 2 . 7 . . 3 Largest Group 4 | . 3 3 1 1 3 . 3 1 1 1 3 1 1 . 2 2 2 2 . 1 4 1 . 3 1 . 2 . 4 . . 3 Highest-Rated Group 357 | . 24 47 31 31 31 . 48 15 15 15 71 23 23 . 233 233 233 142 . 14 327 142 . 290 142 . 238 . 164 . . 357 Highest-Rated Ally 148 | . 8 31 31 31 31 . 16 15 15 15 32 23 23 . 148 148 148 80 . 14 148 142 . 142 142 . 119 . 82 . . 119 Total Orders 19 | . . . . . . . . . . . 1 12 . . . . . . . 3 . . . 3 . . . . . . . . STAY 8 | . . . . . . . . . . . . 6 . . . . . . . 1 . . . 1 . . . . . . . . FOLLOW 8 | . . . . . . . . . . . . 6 . . . . . . . 1 . . . 1 . . . . . . . . AID 3 | . . . . . . . . . . . 1 . . . . . . . . 1 . . . 1 . . . . . . . . Ally Attacks 383 | . 16 15 . 6 24 . 8 . 16 2 1 . . . 1 30 24 17 . . 84 10 . 18 18 . 21 . 37 . . 35 Total Damage 11307 | . 110 217 . 62 163 . 107 . 269 28 15 . . . 28 810 1192 735 . . 2511 282 . 993 1168 . 1088 . 584 . . 945 Kills 71 | . 3 4 . 1 1 . 2 . 3 . . . . . . 14 5 1 . . 13 1 . 6 6 . 6 . 4 . . 1 Allies Corrupted 1 | . . . . . . . . . . . . . . . . . . . . . . . . . . . . . . . . 1 Allies Melted . | . . . . . . . . . . . . . . . . . . . . . . . . . . . . . . . . . X0-1V1 Amusement Gains 634 | . 8 . . 90 30 25 . . . 5 . 67 . . 60 20 9 . . . . . . . 27 52 . 40 62 43 10 86 Good Acts 211 | . 8 9 . 2 12 10 7 4 1 8 9 . 7 . 5 1 6 8 1 5 4 . 1 4 1 . 2 6 25 . 22 43 Bad Acts 134 | . 4 10 . 2 1 1 . 2 4 1 6 . 3 . 6 2 . . 2 2 2 1 9 2 2 . . . 8 . 47 17 Intel | -11 -10 -10 -10 -9 -8 -8 -8 -8 -7 -7 -7 -7 -6 -6 -6 -6 -6 -5 -5 -4 -4 -4 -4 -3 -3 -3 -2 -2 -2 -1 -1 -1 ------- Run | Yrd Mat Min Exi Min Mat Gar Mat Gar Fac Low Low Dat Pro Fac Gar Fac Gar Fac Gar Fac Gar Fac Gar Res Arm Lab Res Qua Sec Acc Com Ac0 Active Infowar (turns) 5469 | 6 755 . . . . . . . . 688 1317 . 714 100 46 36 . 504 48 54 458 . . 269 . . . . 474 . . . Sensors 1 | . . . . . . . . . . . . . . . . . . 1 . . . . . . . . . . . . . . Terrain 3239 | . . . . . . . . . . 688 1317 . 714 100 46 . . . . 2 372 . . . . . . . . . . . Seismic 761 | 6 755 . . . . . . . . . . . . . . . . . . . . . . . . . . . . . . . Jamming 1468 | . . . . . . . . . . . . . . . . 36 . 503 48 52 86 . . 269 . . . . 474 . . . Robot Analysis Total 154 | . 2 . . . . . . . . . . 152 . . . . . . . . . . . . . . . . . . . . Derelict Logs Recovered 7 | . . . . 3 . . . . . 2 1 . 1 . . . . . . . . . . . . . . . . . . . Drone Launches . | . . . . . . . . . . . . . . . . . . . . . . . . . . . . . . . . . Drone Recoveries . | . . . . . . . . . . . . . . . . . . . . . . . . . . . . . . . . . Exploration | -11 -10 -10 -10 -9 -8 -8 -8 -8 -7 -7 -7 -7 -6 -6 -6 -6 -6 -5 -5 -4 -4 -4 -4 -3 -3 -3 -2 -2 -2 -1 -1 -1 ------------- Run | Yrd Mat Min Exi Min Mat Gar Mat Gar Fac Low Low Dat Pro Fac Gar Fac Gar Fac Gar Fac Gar Fac Gar Res Arm Lab Res Qua Sec Acc Com Ac0 Turns Passed 40640 | 98 1266 286 411 652 2092 1935 536 1474 732 1532 1901 498 975 101 2344 578 1518 749 1265 619 1236 263 916 766 813 492 411 812 1887 305 5502 5675 Spaces Moved 16963 | 50 643 138 254 361 911 806 170 552 277 645 779 207 412 44 787 217 583 267 505 221 415 123 418 308 355 232 190 374 586 94 2179 2860 Core 14 | 13 . . . . . . . . . . . . . . 1 . . . . . . . . . . . . . . . . . Treads 16827 | 37 643 138 254 361 911 806 170 552 277 645 779 207 412 44 664 217 583 267 505 221 415 123 418 308 355 232 190 374 586 94 2179 2860 Legs 33 | . . . . . . . . . . . . . . . 33 . . . . . . . . . . . . . . . . . Wheels 89 | . . . . . . . . . . . . . . . 89 . . . . . . . . . . . . . . . . . Hover . | . . . . . . . . . . . . . . . . . . . . . . . . . . . . . . . . . Flight . | . . . . . . . . . . . . . . . . . . . . . . . . . . . . . . . . . Fastest Speed 50 | 50 160 160 160 160 160 200 200 200 200 225 225 225 225 225 160 220 210 160 160 216 150 150 150 150 150 150 150 165 165 246 160 160 Average Speed 195 | 131 160 179 160 160 175 200 200 200 212 225 225 225 225 225 236 220 213 206 213 216 223 150 150 150 150 150 151 165 193 247 242 160 Slowest Speed 2100 | 160 160 240 160 160 200 200 200 200 225 225 225 225 225 225 2100 226 220 210 216 216 245 150 225 150 150 150 165 165 249 249 246 240 Overloaded Moves . | . . . . . . . . . . . . . . . . . . . . . . . . . . . . . . . . . Propulsion Burnouts . | . . . . . . . . . . . . . . . . . . . . . . . . . . . . . . . . . Robots Hopped . | . . . . . . . . . . . . . . . . . . . . . . . . . . . . . . . . . Potential Cave-ins 54 | . . . . . . . . . . . . . . . . . . 2 . . . . . 2 2 . . . 15 . . 33 Cave-ins Triggered 5 | . . . . . . . . . . . . . . . . . . 1 . . . . . . . . . . . . . 4 Teleports 3 | . . . . . . . . . . . . . . . . . . . . . . . . . . . . . . . 1 2 Exploration Rate (%) 48 | 3 92 42 63 74 68 88 24 59 8 82 81 78 65 3 72 9 67 9 75 7 52 5 50 18 32 97 8 36 45 6 75 97 Regions Visited 32 Branch Regions 13 Pre-discovered Areas 28 | . 1 . 1 . . . . . . . 1 25 . . . . . . . . . . . . . . . . . . . . Known Exits Taken 15 | . . 1 . . 1 . 1 . 1 . 1 . 1 1 . 1 . 1 . 1 . 1 . 1 . 1 . . 1 . 1 . Unknown Exits Taken 10 | 1 1 . 1 1 . . . . . 1 . 1 . . . . . . . . . . . . 1 . 1 1 . 1 . . Scrap Searched 6 | . . . . 2 . . . . . . 1 . 3 . . . . . . . . . . . . . . . . . . . Spaces Dug 144 | . . . . . 9 . 2 . . . . . . . . 8 . 20 1 1 . 2 . 10 13 . 9 35 9 3 4 18 Terrain Destroyed 6001 | . 8 . . 39 69 57 27 9 1 . 8 6 16 . 43 10 23 27 183 42 12 64 26 30 74 4 38 54 319 103 510 4199 Melee 14 | . . . . . 9 . 1 . . . . . . . . . . 3 . . . . . . . . . . . . . 1 Projectile 4299 | . . . . . . . 1 . 1 . 5 . . . 4 10 . 24 3 2 . 8 17 30 47 4 14 43 163 10 395 3518 AOE 1688 | . 8 . . 39 60 57 25 9 . . 3 6 16 . 39 . 23 . 180 40 12 56 9 . 27 . 24 11 156 93 115 680 Terrain Rammed . | . . . . . . . . . . . . . . . . . . . . . . . . . . . . . . . . . Walls Destroyed . | . . . . . . . . . . . . . . . . . . . . . . . . . . . . . . . . . Machines Disabled . | . . . . . . . . . . . . . . . . . . . . . . . . . . . . . . . . . Actions | -11 -10 -10 -10 -9 -8 -8 -8 -8 -7 -7 -7 -7 -6 -6 -6 -6 -6 -5 -5 -4 -4 -4 -4 -3 -3 -3 -2 -2 -2 -1 -1 -1 --------- Run | Yrd Mat Min Exi Min Mat Gar Mat Gar Fac Low Low Dat Pro Fac Gar Fac Gar Fac Gar Fac Gar Fac Gar Res Arm Lab Res Qua Sec Acc Com Ac0 Total 22098 | 74 794 160 260 405 1241 1016 275 799 367 677 871 233 442 46 1086 280 759 419 631 319 647 170 600 496 543 351 280 507 1094 136 2386 3734 Wait 1848 | . 63 . . 1 141 53 47 105 . 1 26 4 1 . 60 25 23 61 48 30 79 21 113 85 89 23 42 20 171 . 24 492 Move 16931 | 49 642 137 253 360 910 805 170 551 276 644 778 206 411 44 786 216 582 267 504 221 414 123 417 307 354 231 189 373 585 93 2178 2855 Hop . | . . . . . . . . . . . . . . . . . . . . . . . . . . . . . . . . . Pick Up 386 | 13 14 6 3 5 30 20 3 9 10 2 7 9 5 . 27 2 14 9 4 7 14 . 6 5 9 9 3 10 32 4 44 51 Fast Attach 125 | . . . . 2 5 2 . 8 8 . 1 . 1 . 3 1 4 5 4 . 7 1 4 1 4 15 3 3 8 . 15 20 Attach 209 | 7 3 2 . 2 9 13 3 2 3 . 5 . 1 2 17 1 6 4 1 4 3 . 3 2 3 3 2 6 37 9 13 43 Detach 54 | . . . . . . 3 . . . . . . . . . . . . 1 . 1 . . . . 3 . 3 12 1 8 22 Swap 398 | . 8 . 1 5 35 22 6 22 18 5 15 5 9 . 25 4 18 10 13 11 26 8 7 19 9 4 7 6 35 2 15 28 Drop 401 | . 8 4 3 1 20 13 . 24 19 3 3 5 5 . 18 2 17 13 5 6 29 1 6 2 12 23 5 14 28 2 49 61 Fire 1480 | 5 48 11 . 8 76 56 44 63 31 22 24 3 9 . 77 29 77 41 50 32 57 15 44 70 63 40 28 65 182 23 34 153 Melee 106 | . . . . 18 9 21 1 3 1 . . 1 . . 32 . 2 8 . . . . . . . . . 5 . . . 5 Ram . | . . . . . . . . . . . . . . . . . . . . . . . . . . . . . . . . . Kick . | . . . . . . . . . . . . . . . . . . . . . . . . . . . . . . . . . Crush 47 | . 8 . . 3 6 . 1 7 1 . . . . . . . . 1 . 5 . 1 . 5 . . 1 2 4 2 . . Escape Stasis 46 | . . . . . . 8 . 4 . . . . . . 4 . 16 . . . 4 . . . . . . . . . 6 4 Rewire 64 | . . . . . . . . 1 . . 12 . . . 37 . . . 1 . 13 . . . . . . . . . . . Trap 3 | . . . . . . . . . . . . . . . . . . . . 3 . . . . . . . . . . . . Miscellaneous . | . . . . . . . . . . . . . . . . . . . . . . . . . . . . . . . . . Route ------- -11/Scrapyard -10/Materials (discovered 4 exits: *Mat x2 / [*Min] / [*Sub]) -10/Mines (discovered 4 exits: *Mat x2 / *Exi / [*Sub]) -10/Exiles -9/Mines (discovered 2 exits: *Mat x2) -8/Materials (discovered 4 exits: *Fac x3 / Gar) -8/Garrison (discovered 4 exits: *Mat x4) -8/Materials -8/Garrison (discovered 3 exits: *Fac x3) -7/Factory (discovered 3 exits: *Fac / *Low x2) -7/Lower Caves -7/Lower Caves -7/Data Miner -6/Proximity Caves -6/Factory -6/Garrison (discovered 3 exits: *Fac x3) -6/Factory -6/Garrison (discovered 2 exits: *Fac x2) -5/Factory (discovered 2 exits: Fac / Gar) -5/Garrison (discovered 3 exits: *Fac x3) -4/Factory -4/Garrison -4/Factory -4/Garrison (discovered 2 exits: *Res x2) -3/Research (discovered 5 exits: *Res x2 / *Arm / *Tes x2) -3/Armory -3/Lab -2/Research -2/Quarantine (discovered 2 exits: *Sec / [*Frg]) -2/Section 7 -1/Access -1/Command (discovered 2 exits: *Sur / *Ac0) -1/Access_0 0b11 Command History --------- Turn | Location | Event 2 | -11/Scrapyard | Met Revision 17 8 | -11/Scrapyard | Discovered new exit (range 16) 99 | -11/Scrapyard | Entered Materials 294 | -10/Materials | Discovered new exit (range 6) 316 | -10/Materials | Build established: Mutant 528 | -10/Materials | Discovered new exit (range 10) 835 | -10/Materials | Discovered new exit (range 8) 849 | -10/Materials | Prayed at D.C.S.S. Altar Unit 901 | -10/Materials | Core integrity permanently improved by X0-1V1 (+200) 1187 | -10/Materials | Discovered new exit (range 3) 1312 | -10/Materials | System corruption reached 10% 1313 | -10/Materials | X0-1V1 sent you into danger 1317 | -10/Materials | X0-1V1 sent allied G-34 Mercenary (x3) 1318 | -10/Materials | Weapon slot count temporarily expanded by X0-1V1 (+2) 1349 | -10/Materials | X0-1V1 foreshadows a heat wave 1365 | -10/Materials | Entered Mines 1365 | -10/Mines | Accompanied by 3 allies 1366 | -10/Mines | Met a Derelict testing a Signal Generator 1367 | -10/Mines | X0-1V1 rewrote G-34 Mercenary IFF filter 1372 | -10/Mines | X0-1V1 activates XOMVISION 1407 | -10/Mines | X0-1V1 mutated your Propulsion slot to Power slot 1410 | -10/Mines | Melee accuracy permanently improved by X0-1V1 (+5%; -50 max core) 1420 | -10/Mines | X0-1V1 vaporized surrounding terrain (radius 16) 1430 | -10/Mines | Discovered new exit (range 14) 1433 | -10/Mines | Identified exit to Exiles 1433 | -10/Mines | X0-1V1 revealed exit location to -10/Exiles 1517 | -10/Mines | X0-1V1 mutated your Weapon slot to Propulsion slot 1523 | -10/Mines | Identified exit to Materials 1523 | -10/Mines | X0-1V1 revealed exit location to -9/Materials 1562 | -10/Mines | Received a Rocket Launcher from a helpful Derelict 1573 | -10/Mines | Discovered new exit (range 9) 1614 | -10/Mines | Build established: Gunner 1643 | -10/Mines | Deemed a non-threat by the Exiles lab entrance 1651 | -10/Mines | Entered Exiles 1651 | -10/Exiles | Accompanied by 1 ally 1691 | -10/Exiles | Met 8R-AWN 1719 | -10/Exiles | Met EX-HEX 1763 | -10/Exiles | Met EX-BIN 1792 | -10/Exiles | Met EX-DEC 1797 | -10/Exiles | Learned location of Zion (-6) 1845 | -10/Exiles | Aligned with FarCom system 1847 | -10/Exiles | Given EX-Vault access code 1883 | -10/Exiles | Opened EX-Vault 1894 | -10/Exiles | Found AWS/Thermal 1900 | -10/Exiles | Found Superbattery 1934 | -10/Exiles | Warned to stay clear of 0b10 Research branches 2045 | -10/Exiles | Discovered new exit (range 14) 2062 | -10/Exiles | Stole two prototypes: Superbattery, AWS/Thermal 2062 | -10/Exiles | Entered Mines 2062 | -9/Mines | Accompanied by 1 ally 2291 | -9/Mines | A weapon hastily lodged in a ceiling crevice suddenly fell to the ground 2329 | -9/Mines | Discovered new exit (range 11) 2333 | -9/Mines | YI-UF0 nonchalantly dropped a Grenade Launcher on the ground 2358 | -9/Mines | Destroyed YI-UF0 2390 | -9/Mines | Met a Derelict who couldn't figure out how to use a Trap Extractor 2431 | -9/Mines | Lost 3 parts (2p1u) 2476 | -9/Mines | Discovered new exit (range 12) 2476 | -9/Mines | Inventory capacity permanently improved by X0-1V1 (+2; -200 max core) 2477 | -9/Mines | Learned 4 Materials zone layouts 2480 | -9/Mines | Learned Materials stockpile data 2533 | -9/Mines | Build established: Scavenger-Mutant 2551 | -9/Mines | X0-1V1 added 0b10 threat records associated with you (considerable) 2714 | -9/Mines | Entered Materials 2714 | -8/Materials | Accompanied by 1 ally 2714 | -8/Materials | Evolved 4 slots: Propulsion x1, Utility x1, Weapon x2 2715 | -8/Materials | Identified exit to Factory 3042 | -8/Materials | Build established: Scavenger-Skirmisher 3360 | -8/Materials | Garrison activated, responded to threat 3366 | -8/Materials | X0-1V1 sent allied S-10 Pest (x3) 3433 | -8/Materials | Discovered exit to Factory (range 15) 3449 | -8/Materials | Lost 3 allies 3596 | -8/Materials | Identified exit to Garrison 3884 | -8/Materials | Destroyed 9 combat bots 3987 | -8/Materials | Repaired Lgt. Treads+ 4227 | -8/Materials | Weapon slot count temporarily expanded by X0-1V1 (+3) 4682 | -8/Materials | Discovered exit to Factory (range 13) 4806 | -8/Materials | Entered Garrison 4863 | -8/Garrison | Triggered checkpoint 5009 | -8/Garrison | Destroyed 7 combat bots 5032 | -8/Garrison | Triggered checkpoint 5062 | -8/Garrison | Triggered checkpoint 5195 | -8/Garrison | Triggered checkpoint 5240 | -8/Garrison | Discovered new exit (range 11) 5266 | -8/Garrison | Triggered checkpoint 5303 | -8/Garrison | Garrison Relay disabled 5393 | -8/Garrison | Discovered new exit (range 5) 5594 | -8/Garrison | Discovered new exit (range 10) 5608 | -8/Garrison | Learned Materials security intel 5700 | -8/Garrison | Lost 3 parts (1p2w) 5743 | -8/Garrison | Garrison Relay disabled 5834 | -8/Garrison | X0-1V1 activates XOMVISION 5958 | -8/Garrison | Identified exit to Materials 5958 | -8/Garrison | X0-1V1 revealed exit location to -8/Materials 6030 | -8/Garrison | Triggered checkpoint 6132 | -8/Garrison | Garrison Relay disabled 6337 | -8/Garrison | X0-1V1 activates XOMVISION 6607 | -8/Garrison | Installed Relay Interface Framework 6615 | -8/Garrison | Build established: Scavenger-Mutant 6741 | -8/Garrison | Entered Materials 6847 | -8/Materials | Garrison activated, responded to threat 6850 | -8/Materials | Expanded RIF knowledge: Watcher Feeds 6939 | -8/Materials | X0-1V1 sent you to a vault 7039 | -8/Materials | Core integrity fell below 50% 7041 | -8/Materials | Lost 3 allies 7049 | -8/Materials | Build established: Scavenger-Skirmisher 7092 | -8/Materials | Lost 3 parts (1n1u1w) 7277 | -8/Materials | Identified exit to Garrison 7277 | -8/Materials | Entered Garrison 7491 | -8/Garrison | Garrison Relay disabled 7657 | -8/Garrison | X0-1V1 revealed exit location to -7/Factory 7931 | -8/Garrison | Triggered checkpoint 7935 | -8/Garrison | Triggered checkpoint 8040 | -8/Garrison | Discovered exit to Factory (range 10) 8083 | -8/Garrison | Triggered checkpoint 8136 | -8/Garrison | Discovered exit to Factory (range 88) 8136 | -8/Garrison | Discovered exit to Factory (range 64) 8136 | -8/Garrison | Discovered exit to Factory (range 12) 8485 | -8/Garrison | Expanded RIF knowledge: Patrol Navigation 8549 | -8/Garrison | X0-1V1 sent you into danger 8751 | -8/Garrison | Entered Factory 8751 | -7/Factory | Accompanied by 1 ally 8751 | -7/Factory | Evolved 2 slots: Propulsion x1, Utility x1 8753 | -7/Factory | FarCom data flow suspended 8899 | -7/Factory | Identified exit to Lower Caves 9022 | -7/Factory | Discovered new exit (range 14) 9022 | -7/Factory | X0-1V1 sent you into danger 9042 | -7/Factory | Build established: Scavenger-Tank 9483 | -7/Factory | Entered Lower Caves 9483 | -7/Lower Caves | Accompanied by 1 ally 9495 | -7/Lower Caves | Learned Factory trap positions 9708 | -7/Lower Caves | Learned Factory emergency access door positions 10180 | -7/Lower Caves | X0-1V1 activates XOMVISION 10392 | -7/Lower Caves | Encountered a Warlord checkpoint 10450 | -7/Lower Caves | Discovered new exit (range 13) 11015 | -7/Lower Caves | Entered another Lower Caves area 11017 | -7/Lower Caves | Attracted the attention of an 0b10 outpost 11047 | -7/Lower Caves | Destroyed 7 combat bots 11077 | -7/Lower Caves | X0-1V1 upgraded hostiles (x2) 11130 | -7/Lower Caves | Lost 4 parts (1p3u) 11291 | -7/Lower Caves | Identified exit to Data Miner 11291 | -7/Lower Caves | X0-1V1 revealed exit location to -7/Data Miner 11305 | -7/Lower Caves | System corruption reached 10% 11376 | -7/Lower Caves | Spotted B-75 Beast 11900 | -7/Lower Caves | Build established: Scavenger-Skirmisher 12435 | -7/Lower Caves | Forcibly received Sfc. Transmogifier from X0-1V1 12540 | -7/Lower Caves | X0-1V1 activates XOMVISION 12916 | -7/Lower Caves | Entered Data Miner 12916 | -7/Data Miner | Accompanied by 1 ally 12916 | -7/Data Miner | Discovered new exit (range 6) 12960 | -7/Data Miner | Met Data Miner 13016 | -7/Data Miner | Learned location of Section 7 (-2) 13016 | -7/Data Miner | Acquired the access code to Warlord's prototype stash 13147 | -7/Data Miner | Received God Mode back door access code from Data Miner 13175 | -7/Data Miner | Destroyed Data Miner 13180 | -7/Data Miner | Found Prototype Hackware 13183 | -7/Data Miner | Found Prototype Hackware 13186 | -7/Data Miner | Interfaced with the Data Conduit 13414 | -7/Data Miner | Entered Proximity Caves 13414 | -6/Proximity Caves | Accompanied by 1 ally 13445 | -6/Proximity Caves | Build established: Hauler-Tank 13559 | -6/Proximity Caves | Identified exit to Factory 13559 | -6/Proximity Caves | X0-1V1 revealed exit location to -6/Factory 13964 | -6/Proximity Caves | Build established: Hauler-Skirmisher 14204 | -6/Proximity Caves | Learned Factory interactive machine intel 14324 | -6/Proximity Caves | X0-1V1 mutated your Utility slot to Weapon slot 14389 | -6/Proximity Caves | Entered Factory 14389 | -6/Factory | Evolved 2 slots: Utility x2 14390 | -6/Factory | Loaded intel: 82 trap records 14392 | -6/Factory | Loaded intel: 261 machine locations 14393 | -6/Factory | Loaded intel: 53 interactive machine locations 14490 | -6/Factory | Identified exit to Garrison 14490 | -6/Factory | Entered Garrison 14491 | -6/Garrison | Loaded intel: 41 machine locations 14570 | -6/Garrison | Triggered checkpoint 14707 | -6/Garrison | Build established: Scavenger-Tank 14812 | -6/Garrison | Garrison Relay disabled 14881 | -6/Garrison | Triggered checkpoint 14881 | -6/Garrison | Triggered checkpoint 14912 | -6/Garrison | Destroyed 7 combat bots 14913 | -6/Garrison | Triggered checkpoint 14938 | -6/Garrison | System corruption reached 10% 15056 | -6/Garrison | Discovered new exit (range 9) 15159 | -6/Garrison | Triggered checkpoint 15314 | -6/Garrison | Discovered new exit (range 12) 15463 | -6/Garrison | Build established: Scavenger-Bomber 15534 | -6/Garrison | Triggered checkpoint 15674 | -6/Garrison | Expanded RIF knowledge: Autoassimilate 15692 | -6/Garrison | X0-1V1 sent hostile Thug (x3) 15793 | -6/Garrison | Lost 13 parts (2p6n3u2w) 15821 | -6/Garrison | X0-1V1 mutated your Weapon slot to Propulsion slot 15838 | -6/Garrison | Garrison Relay disabled 16214 | -6/Garrison | Spotted B-75 Beast 16268 | -6/Garrison | Destroyed B-75 Beast 16312 | -6/Garrison | Rewired B-75 Beast 16362 | -6/Garrison | Rewired B-90 Cyclops 16380 | -6/Garrison | Identified exit to Factory 16380 | -6/Garrison | X0-1V1 revealed exit location to -6/Factory 16787 | -6/Garrison | X0-1V1 activates XOMVISION 16834 | -6/Garrison | Entered Factory 16834 | -6/Factory | Accompanied by 2 allies 16835 | -6/Factory | Loaded intel: 275 machine locations 16882 | -6/Factory | Repaired Lgt. Treads+ 16979 | -6/Factory | X0-1V1 announced a LAN party 17109 | -6/Factory | X0-1V1 redirected Transport squads to designated parking area 17124 | -6/Factory | Build established: Bothacker-Bomber 17208 | -6/Factory | Spotted B-75 Beast 17215 | -6/Factory | Allies destroyed B-75 Beast 17373 | -6/Factory | Identified exit to Garrison 17412 | -6/Factory | Entered Garrison 17412 | -6/Garrison | Accompanied by 2 allies 17413 | -6/Garrison | Loaded intel: 36 machine locations 17475 | -6/Garrison | Spotted B-75 Beast 17511 | -6/Garrison | Allies destroyed B-75 Beast 17586 | -6/Garrison | Found Relay Coupler [Proto] 17809 | -6/Garrison | Triggered checkpoint 17810 | -6/Garrison | Triggered checkpoint 17816 | -6/Garrison | Triggered checkpoint 17824 | -6/Garrison | Destroyed Beast 5a 17871 | -6/Garrison | Destroyed 10 combat bots 18060 | -6/Garrison | Triggered checkpoint 18085 | -6/Garrison | X0-1V1 downgraded hostiles (x1) 18146 | -6/Garrison | Lost 3 parts (1n2w) 18246 | -6/Garrison | Expanded RIF knowledge: Command Fork 18435 | -6/Garrison | Garrison Relay disabled 18463 | -6/Garrison | Core integrity restored by X0-1V1 (+232) 18679 | -6/Garrison | Discovered new exit (range 14) 18703 | -6/Garrison | Found embedded Infiltrators 18756 | -6/Garrison | Build established: Bothacker-Mutant 18873 | -6/Garrison | Discovered new exit (range 8) 18930 | -6/Garrison | Entered Factory 18930 | -5/Factory | Accompanied by 2 allies 18930 | -5/Factory | Evolved 2 slots: Propulsion x1, Weapon x1 18931 | -5/Factory | Loaded intel: 269 machine locations 19031 | -5/Factory | X0-1V1 activates XOMVISION 19245 | -5/Factory | Build established: Bothacker-Bomber 19354 | -5/Factory | X0-1V1 sent you to a vault 19358 | -5/Factory | Found Fusion Bomb Launcher 19367 | -5/Factory | Found Prototype Device 19368 | -5/Factory | Identified Exp. Sensor Array 19403 | -5/Factory | Found Exp. EM Disruption Field 19545 | -5/Factory | X0-1V1 activates XOMVISION 19651 | -5/Factory | Crushed by falling debris 19660 | -5/Factory | Identified exit to Factory 19660 | -5/Factory | X0-1V1 revealed exit location to -4/Factory 19678 | -5/Factory | Identified exit to Garrison 19679 | -5/Factory | Entered Garrison 19680 | -5/Garrison | Loaded intel: 25 machine locations 19698 | -5/Garrison | Expanded RIF knowledge: Coupler Efficiency 19811 | -5/Garrison | Triggered checkpoint 19921 | -5/Garrison | Triggered checkpoint 19969 | -5/Garrison | Triggered checkpoint 20005 | -5/Garrison | Destroyed 8 combat bots 20054 | -5/Garrison | Build established: Scavenger-Bomber 20121 | -5/Garrison | Garrison Relay disabled 20139 | -5/Garrison | X0-1V1 sent hostile Savage (x2) 20198 | -5/Garrison | Destroyed 7 combat bots 20231 | -5/Garrison | Triggered checkpoint 20289 | -5/Garrison | Discovered exit to Factory (range 10) 20678 | -5/Garrison | Discovered exit to Factory (range 12) 20911 | -5/Garrison | Discovered exit to Factory (range 15) 20944 | -5/Garrison | Entered Factory 20944 | -4/Factory | Evolved 2 slots: Utility x2 20945 | -4/Factory | Loaded intel: 311 machine locations 21014 | -4/Factory | Fabricated M-13 Machinist (x1) 21204 | -4/Factory | X0-1V1 announced a LAN party 21206 | -4/Factory | X0-1V1 activates XOMVISION 21465 | -4/Factory | X0-1V1 vaporized surrounding terrain (radius 22) 21563 | -4/Factory | Identified exit to Garrison 21563 | -4/Factory | Entered Garrison 21564 | -4/Garrison | Loaded intel: 37 machine locations 21587 | -4/Garrison | Spotted B-86 Titan 21689 | -4/Garrison | Destroyed B-86 Titan 21696 | -4/Garrison | X0-1V1 sent you into danger 21740 | -4/Garrison | Expanded RIF knowledge: Alert ID Control 21772 | -4/Garrison | Garrison Relay disabled 21801 | -4/Garrison | Triggered checkpoint 21865 | -4/Garrison | Triggered checkpoint 22027 | -4/Garrison | Spotted B-75 Beast 22056 | -4/Garrison | Destroyed B-75 Beast 22146 | -4/Garrison | Rewired B-90 Cyclops 22173 | -4/Garrison | System corruption reached 10% 22193 | -4/Garrison | Rewired B-75 Beast 22310 | -4/Garrison | Found Gamma Bomb Array 22314 | -4/Garrison | Found Gamma Bomb Array 22447 | -4/Garrison | Triggered checkpoint 22555 | -4/Garrison | Triggered checkpoint 22771 | -4/Garrison | Discovered new exit (range 10) 22799 | -4/Garrison | Entered Factory 22799 | -4/Factory | Accompanied by 1 ally 22800 | -4/Factory | Loaded intel: 252 machine locations 22939 | -4/Factory | Destroyed Cyclops 7a 22957 | -4/Factory | Fabricated Huge Storage Unit (x1) 23008 | -4/Factory | Build established: Hauler-Bomber 23029 | -4/Factory | Destroyed 10 combat bots 23062 | -4/Factory | Identified exit to Garrison 23062 | -4/Factory | Entered Garrison 23063 | -4/Garrison | Loaded intel: 41 machine locations 23148 | -4/Garrison | Triggered checkpoint 23269 | -4/Garrison | X0-1V1 upgraded hostiles (x1) 23356 | -4/Garrison | Spotted B-90 Cyclops 23421 | -4/Garrison | Destroyed 7 combat bots 23426 | -4/Garrison | Discovered new exit (range 10) 23486 | -4/Garrison | Spotted Striker 23578 | -4/Garrison | Triggered checkpoint 23671 | -4/Garrison | X0-1V1 activates XOMVISION 23706 | -4/Garrison | Triggered checkpoint 23836 | -4/Garrison | Expanded RIF knowledge: Autooverride 23965 | -4/Garrison | Discovered new exit (range 10) 23978 | -4/Garrison | Entered Research 23978 | -3/Research | Evolved 2 slots: Power x1, Utility x1 23979 | -3/Research | Loaded intel: 105 machine locations 23998 | -3/Research | Discovered new exit (range 7) 24065 | -3/Research | Identified Deep Network Scanner 24066 | -3/Research | Identified exit to Armory 24066 | -3/Research | Identified exit to Testing 24286 | -3/Research | X0-1V1 downgraded hostiles (x4) 24425 | -3/Research | Destroyed 8 combat bots 24478 | -3/Research | First assault squad dispatched 24617 | -3/Research | Identified exit to Research 24617 | -3/Research | X0-1V1 revealed exit location to -2/Research 24621 | -3/Research | System corruption reached 10% 24721 | -3/Research | Intercept squad dispatched 24744 | -3/Research | Entered Armory 24744 | -3/Armory | Accompanied by 1 ally 24745 | -3/Armory | Loaded intel: 97 machine locations 25248 | -3/Armory | Found Fusion Bomb Launcher 25305 | -3/Armory | Spotted B-86 Titan 25332 | -3/Armory | Destroyed B-86 Titan 25335 | -3/Armory | P-80 Master assimilated allied Marshal 8c 25395 | -3/Armory | X0-1V1 activates XOMVISION 25552 | -3/Armory | Discovered new exit (range 4) 25557 | -3/Armory | Entered Lab 25557 | -3/Lab | Discovered exit to Research (range 9) 25574 | -3/Lab | Hidden lab's door opened automatically 25574 | -3/Lab | Sensor layout match revealed 25575 | -3/Lab | Gained access to the hidden lab's interior 25591 | -3/Lab | Detected by scanners 25597 | -3/Lab | Confronted by A5 25606 | -3/Lab | System corruption reached 30% 25625 | -3/Lab | Destroyed A5 25670 | -3/Lab | Found Alien Artifact 25670 | -3/Lab | Identified Integrated Dissipator 25670 | -3/Lab | Installed Integrated Dissipator, increased core heat dissipation (+20) 25708 | -3/Lab | Found Prototype Device 25708 | -3/Lab | Identified AEGIS Remote Shield 25716 | -3/Lab | Found Deep Network Scanner 25751 | -3/Lab | Found Alien Artifact 25761 | -3/Lab | Found Alien Artifact 25762 | -3/Lab | Identified Core Expander 25762 | -3/Lab | Installed Core Expander, added new Propulsion slot 25774 | -3/Lab | Found Alien Artifact 25815 | -3/Lab | Found Prototype Energy Gun 25815 | -3/Lab | Identified Hyp. EM Gauss Rifle 25822 | -3/Lab | Found Prototype Energy Cannon 25864 | -3/Lab | Found Prototype Special Weapon 25864 | -3/Lab | Identified Gui. Remote Datajack 25887 | -3/Lab | Decrypted terminal 25887 | -3/Lab | Acquired modification code for an L2 power cell 25958 | -3/Lab | Decrypted terminal 25960 | -3/Lab | Found Alien Artifact 25960 | -3/Lab | Identified LC Capacitor 26034 | -3/Lab | Found Prototype Protection 26034 | -3/Lab | Identified Med. Regenerative Plating 26049 | -3/Lab | Entered Research 26049 | -2/Research | Evolved 2 slots: Utility x2 26050 | -2/Research | Loaded intel: 130 machine locations 26249 | -2/Research | X0-1V1 sent allied Executioner (x2) 26393 | -2/Research | Spotted B-90 Cyclops 26410 | -2/Research | Allies destroyed B-90 Cyclops 26418 | -2/Research | Discovered new exit (range 15) 26460 | -2/Research | Entered Quarantine 26461 | -2/Quarantine | Loaded intel: 72 machine locations 26503 | -2/Quarantine | Identified Potential Cannon 26540 | -2/Quarantine | Found Alien Impact Weapon 26613 | -2/Quarantine | Found Alien Artifact 26738 | -2/Quarantine | Spotted Fortress 26738 | -2/Quarantine | X0-1V1 whisked you away to safety 26745 | -2/Quarantine | Identified Core Stripper 26806 | -2/Quarantine | Destroyed Fortress 26816 | -2/Quarantine | Found Prototype Device 26817 | -2/Quarantine | Identified Exp. Force Field 26827 | -2/Quarantine | Found Vortex Chain Reactor 26837 | -2/Quarantine | Found Exp. EM Shield 26961 | -2/Quarantine | Identified Core Reset Matrix 27073 | -2/Quarantine | Found Thermal Barrier 27091 | -2/Quarantine | Intercept squad dispatched 27110 | -2/Quarantine | Spotted Tracker 27111 | -2/Quarantine | Spotted Tracker 27117 | -2/Quarantine | Destroyed Tracker 27125 | -2/Quarantine | Destroyed Tracker 27131 | -2/Quarantine | Build established: Scavenger-Bomber 27164 | -2/Quarantine | Spotted Combat Programmer 27173 | -2/Quarantine | Destroyed Combat Programmer 27181 | -2/Quarantine | Destroyed Combat Programmer 27266 | -2/Quarantine | Discovered new exit (range 5) 27266 | -2/Quarantine | Discovered new exit (range 6) 27272 | -2/Quarantine | Entered Section 7 27273 | -2/Section 7 | Loaded intel: 127 machine locations 27402 | -2/Section 7 | Identified exit to Access 27402 | -2/Section 7 | X0-1V1 revealed exit location to -1/Access 27425 | -2/Section 7 | Spotted B-90 Cyclops 27435 | -2/Section 7 | Destroyed B-90 Cyclops 27481 | -2/Section 7 | Garrison activated, responded to threat 27485 | -2/Section 7 | Scanned by Researcher 27488 | -2/Section 7 | Weapon slot count temporarily expanded by X0-1V1 (+2) 27515 | -2/Section 7 | Destroyed 10 combat bots 27754 | -2/Section 7 | Spotted Executioner 27755 | -2/Section 7 | Spotted Executioner 27772 | -2/Section 7 | First assault squad dispatched 27790 | -2/Section 7 | Destroyed Executioner 27801 | -2/Section 7 | Destroyed Executioner 27886 | -2/Section 7 | Found Alien Energy Cannon 27887 | -2/Section 7 | Installed L-Cannon capacitor 27908 | -2/Section 7 | X0-1V1 turns hostiles against one another 27911 | -2/Section 7 | P-80 Master assimilated hostile G-73 Enforcer 27990 | -2/Section 7 | X0-1V1 mutated your Propulsion slot to Utility slot 28042 | -2/Section 7 | System corruption reached 10% 28094 | -2/Section 7 | Spotted B-99 Colossus 28150 | -2/Section 7 | Destroyed B-99 Colossus 28188 | -2/Section 7 | Found Prototype Ballistic Gun 28191 | -2/Section 7 | Intercept squad dispatched 28206 | -2/Section 7 | Spotted Tracker 28207 | -2/Section 7 | Destroyed Tracker 28208 | -2/Section 7 | Spotted Tracker 28209 | -2/Section 7 | Destroyed Tracker 28245 | -2/Section 7 | Spotted Combat Programmer 28253 | -2/Section 7 | Spotted Combat Programmer 28262 | -2/Section 7 | Destroyed Combat Programmer 28335 | -2/Section 7 | Found Alien Artifact 28335 | -2/Section 7 | Identified LRC Storage 28335 | -2/Section 7 | Installed LRC Storage, increased inventory capacity (+2) 28345 | -2/Section 7 | Found Alien Artifact 28346 | -2/Section 7 | X0-1V1 sent you to a vault 28398 | -2/Section 7 | Spotted Alpha 7 28398 | -2/Section 7 | Spotted Alpha 7 28413 | -2/Section 7 | Destroyed Alpha 7 28441 | -2/Section 7 | Destroyed Alpha 7 28458 | -2/Section 7 | Lost 4 allies 28609 | -2/Section 7 | System corruption reached 30% 28759 | -2/Section 7 | Found Alien Artifact 28759 | -2/Section 7 | Identified LRC Energy Well 28759 | -2/Section 7 | Installed LRC Energy Well, increased energy storage capacity (+250) 28763 | -2/Section 7 | Identified LRC Insulator 28763 | -2/Section 7 | Installed LRC Insulator, 1 resistance modified: EM +25% 28871 | -2/Section 7 | Identified Multirail 28903 | -2/Section 7 | Fired L-Cannon 28917 | -2/Section 7 | High security lockdown imminent 28960 | -2/Section 7 | Destroyed 15 combat bots 28997 | -2/Section 7 | High security lockdown engaged 29121 | -2/Section 7 | Spotted S7 Guard 29126 | -2/Section 7 | Destroyed S7 Guard 29151 | -2/Section 7 | Found Prototype Protection 29154 | -2/Section 7 | Destroyed 21 combat bots 29159 | -2/Section 7 | Entered Access 29159 | -1/Access | Evolved 2 slots: Power x1, Utility x1 29160 | -1/Access | Loaded intel: 114 machine locations 29166 | -1/Access | Identified Hvy. Regenerative Plating 29169 | -1/Access | Identified Subatomic Replicator 29169 | -1/Access | Used Subatomic Replicator to replicate Potential Cannon 29292 | -1/Access | High security lockdown imminent 29304 | -1/Access | Spotted B-99 Colossus 29315 | -1/Access | Destroyed B-99 Colossus 29372 | -1/Access | High security lockdown engaged 29425 | -1/Access | Discovered new exit (range 16) 29427 | -1/Access | Spotted B-99 Colossus 29454 | -1/Access | Build established: Generator-Bomber 29464 | -1/Access | Entered Command 29465 | -1/Command | Loaded intel: 67 machine locations 29472 | -1/Command | Fired L-Cannon 29472 | -1/Command | 0b10 Conduit disabled 29483 | -1/Command | X0-1V1 sent hostile B-74 Champion (x1) 29493 | -1/Command | Fired L-Cannon 29940 | -1/Command | All MAIN.C guards destroyed 30132 | -1/Command | X0-1V1 mutated your Utility slot to Weapon slot 30451 | -1/Command | X0-1V1 sent you to a vault 30456 | -1/Command | Found Exp. EM Shield 30474 | -1/Command | Found Ragnarok Missile Launcher 30482 | -1/Command | Found Exp. Cloaking Device 30513 | -1/Command | Found Prototype Special Weapon 30513 | -1/Command | Identified Exp. Remote Datajack 30543 | -1/Command | Found Exp. Core Analyzer 30645 | -1/Command | Spotted Alpha 7 30667 | -1/Command | Destroyed Alpha 7 30681 | -1/Command | Found Multirail 31192 | -1/Command | Found Exp. Core Analyzer 31198 | -1/Command | Discovered new exit (range 9) 31208 | -1/Command | Found Exp. Core Analyzer 32109 | -1/Command | Build established: Generator-Tank 32463 | -1/Command | X0-1V1 activates XOMVISION 32826 | -1/Command | Identified exit to Access_0 32826 | -1/Command | X0-1V1 revealed exit location to -1/Access_0 32849 | -1/Command | X0-1V1 vaporized surrounding terrain (radius 16) 33211 | -1/Command | Found Quantum Capacitor 33459 | -1/Command | Identified Transdimensional Reconstructor 33459 | -1/Command | Discovered new exit (range 33) 33459 | -1/Command | Discovered new exit (range 94) 33459 | -1/Command | Extracted map data and part IDs from MAIN.C's data core 33633 | -1/Command | Found Vortex Chain Reactor 33642 | -1/Command | Found Exp. Force Field 33648 | -1/Command | Found Exp. Weapon Cycler 33655 | -1/Command | Found Multirail 34121 | -1/Command | System corruption reached 10% 34141 | -1/Command | Found Exp. System Purifier 34306 | -1/Command | X0-1V1 vaporized surrounding terrain (radius 16) 34340 | -1/Command | X0-1V1 sent hostile G-73 Enforcer (x3) 34382 | -1/Command | X0-1V1 activates XOMVISION 34584 | -1/Command | X0-1V1 mutated your Propulsion slot to Weapon slot 34592 | -1/Command | X0-1V1 vaporized surrounding terrain (radius 23) 34610 | -1/Command | X0-1V1 sent hostile X-77 Beamer (x2) 34643 | -1/Command | X0-1V1 tapped a No Entrance sign 34696 | -1/Command | X0-1V1 mutated your Weapon slot to Propulsion slot 34756 | -1/Command | X0-1V1 vaporized surrounding terrain (radius 15) 34771 | -1/Command | X0-1V1 sent hostile G-67 Veteran (x3) 34787 | -1/Command | Found Singularity Reactor 34801 | -1/Command | X0-1V1 mutated your Weapon slot to Utility slot 34845 | -1/Command | X0-1V1 vaporized surrounding terrain (radius 17) 34958 | -1/Command | Warped through subspace to slip node 34966 | -1/Command | Entered Access_0 34967 | -1/Access_0 | Loaded intel: 57 machine locations 34968 | -1/Access_0 | Met Architect 34977 | -1/Access_0 | Architect warped through subspace 35003 | -1/Access_0 | X0-1V1 activates XOMVISION 35006 | -1/Access_0 | Identified exit to Surface 35006 | -1/Access_0 | X0-1V1 revealed exit location to -0/Surface 35023 | -1/Access_0 | Architect warped through subspace 35056 | -1/Access_0 | Architect warped through subspace 35094 | -1/Access_0 | Architect warped through subspace 35123 | -1/Access_0 | Spotted Enhanced Programmer 35125 | -1/Access_0 | Architect warped through subspace 35127 | -1/Access_0 | Subspace Access Node disabled 35130 | -1/Access_0 | Destroyed Enhanced Programmer 35151 | -1/Access_0 | Spotted Enhanced Programmer 35160 | -1/Access_0 | X0-1V1 sent allied Executioner (x3) 35168 | -1/Access_0 | Destroyed Enhanced Programmer 35172 | -1/Access_0 | Destroyed Executioner 35182 | -1/Access_0 | Subspace Access Node disabled 35187 | -1/Access_0 | Architect warped through subspace 35192 | -1/Access_0 | Fired L-Cannon 35192 | -1/Access_0 | Singularity Gate disabled 35192 | -1/Access_0 | Singularity Gate disabled 35202 | -1/Access_0 | Fired L-Cannon 35208 | -1/Access_0 | Spotted Enhanced Programmer 35215 | -1/Access_0 | Fired L-Cannon 35215 | -1/Access_0 | Destroyed Enhanced Programmer 35215 | -1/Access_0 | Architect warped through subspace 35225 | -1/Access_0 | Fired L-Cannon 35225 | -1/Access_0 | Subspace Access Node disabled 35234 | -1/Access_0 | Spotted Enhanced Programmer 35237 | -1/Access_0 | Fired L-Cannon 35247 | -1/Access_0 | Fired L-Cannon 35247 | -1/Access_0 | Destroyed Enhanced Programmer 35257 | -1/Access_0 | Fired L-Cannon 35265 | -1/Access_0 | Spotted Enhanced Programmer 35268 | -1/Access_0 | Fired L-Cannon 35268 | -1/Access_0 | Subspace Access Node disabled 35278 | -1/Access_0 | Fired L-Cannon 35298 | -1/Access_0 | Destroyed Enhanced Programmer 35339 | -1/Access_0 | Extracted unknown sensor trigger ID from Architect's data core 35342 | -1/Access_0 | Found Alien Energy Gun 35343 | -1/Access_0 | Identified Modified Sigix Sheargun 35346 | -1/Access_0 | Found Prototype Hackware 35347 | -1/Access_0 | Identified Architect God Chip D 35350 | -1/Access_0 | Found Prototype Hackware 35351 | -1/Access_0 | Identified Architect God Chip A 35354 | -1/Access_0 | Found Hpw. Transdimensional Reconstructor 35357 | -1/Access_0 | Found Prototype Protection 35357 | -1/Access_0 | Identified Centrium Linked Plating 35366 | -1/Access_0 | Found Modified Sigix Sheargun 35404 | -1/Access_0 | Spotted Enhanced Programmer 35406 | -1/Access_0 | Spotted Enhanced Programmer 35416 | -1/Access_0 | Fired L-Cannon 35416 | -1/Access_0 | Destroyed Enhanced Programmer 35498 | -1/Access_0 | Found Exp. Phase Shifter 35504 | -1/Access_0 | X0-1V1 sent you into danger 35506 | -1/Access_0 | A6 warped into view 35519 | -1/Access_0 | Destroyed A6 35633 | -1/Access_0 | Found Enh. Gamma Rifle 35640 | -1/Access_0 | Found Exp. Focal Shield 35643 | -1/Access_0 | Found Thermal Barrier 35698 | -1/Access_0 | Spotted Enhanced Programmer 35711 | -1/Access_0 | Destroyed Enhanced Programmer 35849 | -1/Access_0 | Fired L-Cannon 35859 | -1/Access_0 | Fired L-Cannon 36010 | -1/Access_0 | Extracted Singularity Gate Test 138-C access codes from A2's data core 36259 | -1/Access_0 | Found Integrated Reactor 36259 | -1/Access_0 | Installed Integrated Reactor, increased core energy generation (+10) 36464 | -1/Access_0 | Found Sigix Broadsword 36667 | -1/Access_0 | A4 warped into view 36671 | -1/Access_0 | Destroyed A4 36699 | -1/Access_0 | Found Core Regenerator 36714 | -1/Access_0 | Spotted Enhanced Programmer 36726 | -1/Access_0 | Destroyed Enhanced Programmer 36737 | -1/Access_0 | Build established: Generator-Mutant 36752 | -1/Access_0 | X0-1V1 sent hostile S-43 Plague (x4) 36784 | -1/Access_0 | X0-1V1 activates XOMVISION 37092 | -1/Access_0 | Found Sigix Corpse 37727 | -1/Access_0 | X0-1V1 sent hostile S-43 Plague (x4) 37832 | -1/Access_0 | X0-1V1 mutated your Utility slot to Propulsion slot 37948 | -1/Access_0 | X0-1V1 sent hostile Wasp (x3) 38044 | -1/Access_0 | A3 warped into view 38052 | -1/Access_0 | Fired L-Cannon 38052 | -1/Access_0 | Destroyed A3 38089 | -1/Access_0 | Found Prototype Ballistic Gun 38089 | -1/Access_0 | Identified A3's Sniper Rifle 38101 | -1/Access_0 | Found Prototype Device 38101 | -1/Access_0 | Identified ST Field Compressor 38120 | -1/Access_0 | Used Core Regenerator, restored core integrity (+387) 38122 | -1/Access_0 | Found Gui. Remote Datajack 38352 | -1/Access_0 | X0-1V1 activates XOMVISION 38504 | -1/Access_0 | X0-1V1 sent hostile H-88 Terminator (x2) 39238 | -1/Access_0 | Fired L-Cannon 39283 | -1/Access_0 | X0-1V1 activates XOMVISION 39725 | -1/Access_0 | X0-1V1 activates XOMVISION 40218 | -1/Access_0 | Found Hpw. Transdimensional Reconstructor 40221 | -1/Access_0 | Warped through subspace 40315 | -1/Access_0 | Warped through subspace 40504 | -1/Access_0 | Fired L-Cannon 40514 | -1/Access_0 | Fired L-Cannon 40524 | -1/Access_0 | Fired L-Cannon 40596 | -1/Access_0 | Crushed by falling debris 40602 | -1/Access_0 | Crushed by falling debris 40610 | -1/Access_0 | Crushed by falling debris 40613 | -1/Access_0 | Crushed by falling debris 40641 | *** | Establishing 0b11! Last Messages --------------- Beam penetrates Earth. X0-1V1 is interested. Beam penetrates Wall. Beam penetrates Earth. Ended siege mode. Acquired Sigix Broadsword. Acquired Gatling Beam. The unstable cave ceiling collapses. Crushed by falling debris. The unstable cave ceiling collapses. Crushed by falling debris. The unstable cave ceiling collapses. Crushed by falling debris. The unstable cave ceiling collapses. Crushed by falling debris. X0-1V1: "Let the electrons flow!" (+1100 energy capacity) Dropped Quantum Capacitor. Acquired Quantum Capacitor. Discarded X0-1V1's Piety Tracker. Map ----- +----------------------------------------------------+ | | | | | | | | | | | | | | | | | | | | | | | | | | | | | | | | | ????????????????????# ??????????????????????? | | ????????????????????# #?????????????????????? | | ????????????????????# #?????????????????????? | | ????????????????????# #?????????????????????? | | ????????????????????# #?????????????????????? | | ????????????????????# #?????????????????????? | | ?????????????????????# ;;;#?????????????????????? | | ?????????????????????# ;; ;#?????????????????????? | | ?????????????????????# ; #?????????????????????? | | ?????????????????????# ; @ #?????????????????????? | | ?????????????????????#;; #?????????????????????? | | ?????????????????????## #?????????????????????? | | ??????????????????????# #?????????????????????? | | ??????????????????????## #?????????????????????? | | ??????????????????????# #?????????????????????? | | ??????????????????????# #?????????????????????? | | ??????????????????????# #?????????????????????? | | ??????????????????????# #???? ????????????????? | | ??????????????????????## #??? ???????????????? | | ???????????????????????# #??? #???????????????? | | ???????????????????????# #??? #???????????????? | | ???????????????????????# ##? #???????????????? | | ???????????????????????# ;"#? ##??????????????? | | ???????????????????????### #? #??????????????? | | ????????????????????????# # #? #??????????????? | | ????????????????????????# ## #??????????????? | | ????????????????????????# # #??????????????? | | ????????????????????????# # #??????????????? | | ????????????????????????# # #??????????????? | | ????????????????????????# #??????????????? | | ????????????????????????# #??????????????? | | ????????????????????????# # ##?????????????? | | ????????????????????????# #?????????????? | | ????????????????????????# #?????????????? | +----------------------------------------------------+ Best States ------------- Heat Dissipation 263 Coolant Potential 240 Energy Generation 133 Energy Capacity 4200 Matter Stores 1000 Matter Capacity 1000 Sight Range 22 Terrain Scan Range 16 Terrain Scan Density 10 Jamming Range 14 Armor Coverage 1200 Resistance: KI 30 Resistance: TH 50 Resistance: EM 100 Weapon Shielding 90 Weapon Cycling 30 Phase Shifting 20 Evasion (%) 60 Targeting Accuracy 8 Core Analysis 8 Armor Integrity Analysis 30 Recoil Reduction 7 Energy Filtering 50 Offensive Hacking 25 Relay Coupler Types 2 Relay Coupler Value 131 Authchip Count 1 Item Schematics ----------------- Huge Storage Unit | -10/Materials | Hacked Combat Drone Bay | -7/Data Miner | Free Lgt. Regenerative Plating | -7/Data Miner | Free Biomechanical Wings | -7/Data Miner | Free Gravity Neutralizer | -7/Data Miner | Free Shock Maul | -7/Data Miner | Free Thunder Leg | -7/Data Miner | Free Imp. Thermal Shield | -7/Data Miner | Free Variable Charge Gun | -7/Data Miner | Free Cld. Nuclear Pulse Thruster | -2/Section 7 | Archive Robot Schematics ------------------ M-13 Machinist | -10/Materials | Hacked L-41 Fighter | -7/Data Miner | Free R-10 Processor | -7/Data Miner | Free A-15 Conveyor | -7/Data Miner | Free Fabricated ------------ M-13 Machinist | x1 | -4/Factory | Authchip Huge Storage Unit | x1 | -4/Factory Repaired ---------- Lgt. Treads | 60% | -8/Materials Lgt. Treads | 35% | -6/Factory Studied --------- Rocket Launcher | -8/Materials | Hacked Lgt. Treads | -8/Materials | Hacked Lgt. Assault Rifle | -8/Materials | Hacked Beam Rifle | -8/Materials | Hacked Hvy. Assault Rifle | -8/Materials | Hacked Alien Tech Used ----------------- Integrated Dissipator Core Expander LC Capacitor Core Stripper LRC Storage LRC Energy Well LRC Insulator L-Cannon Subatomic Replicator Transdimensional Reconstructor Modified Sigix Sheargun Integrated Reactor Sigix Broadsword Core Regenerator High-powered Transdimensional Reconstructor Achievements -------------- I Am Starship Now Superinsulated Challenges ------------ None Game ------ Seed DoorHugeChronowheel Manual? 0 Play Time 07:51:36 Cumulative 531.4 hours Start 2026.07.26 @ 23:15:16 End 2026.07.27 @ 23:36:42 Sessions 5 Manual Loads 0 Difficulty Rogue Special Mode None Game No. 301 Rogue 301 Adventurer 0 Explorer 0 Win Type 1 Total 36 Types 17/2/7/2/1/1/1/2/1/2 Lore% 97 Gallery% 92 Achievement% 85 Wizard Run 0 Options --------- Layout 1 ASCII 0 Keyboard 0 Movement Numpad Keybinds 0 Fullscreen 1 Font 24/Proggy Map View 50x35 Zoom Use 0% Tactical HUD 0 Map Filters NONE Filters NONE Steam 1 RUN: c2d306dd-b97e-414e-baf0-21f1af6ad38e